Date,Purpose/Category (T),Department/Service (T),Amount Excl VAT,Beneficiary (T)
26/08/2021,Rents,Facilities Management,"6,568.00",Abellio East Midlands Ltd
27/11/2021,Repairs & Maintenance to Buildings,Village & Community Halls,847.19,Ace Electrical Services
27/11/2021,Repairs & Maintenance to Buildings,Village & Community Halls,882.55,Ace Electrical Services
28/09/2021,Repairs & Maintenance to Buildings,Facilities Management,"1,158.70",Ace Electrical Services
07/10/2021,Repairs & Maintenance to Buildings,Facilities Management,708.00,Ace Electrical Services
12/10/2021,Repairs & Maintenance to Buildings,Facilities Management,"1,155.39",Ace Electrical Services
06/12/2021,General Grants,Enterprise,"10,000.00",Acorn Training
01/11/2021,Maintenance Contracts,Brewhouse Arts Centre,628.78,ADT Fire And Security PLC
12/11/2021,DFG Contractor Payments,Housing Standards,"2,494.89",AKW Medi-Care Ltd
20/10/2021,DFG Contractor Payments,Housing Standards,"2,494.89",AKW Medi-Care Ltd
20/10/2021,DFG Contractor Payments,Housing Standards,"2,494.89",AKW Medi-Care Ltd
22/09/2021,Safer Public Spaces (Covid-19),Re-Opening the High Streets (COVID-19),"2,500.00",Alive Studios Limited
01/10/2021,Leased Car Costs,Heads of Service,585.97,Alphabet (UK) Fleet Management Ltd
01/10/2021,Leased Car Costs,Heads of Service,"2,873.80",Alphabet (UK) Fleet Management Ltd
28/10/2021,Professional Support,Stronger Towns Fund (Interim Head of Regeneration),"2,000.00",AMION Consulting Limited
29/09/2021,Other Expenses,Brewhouse Community Ticket Sales,"5,570.00",An Individual
19/11/2021,Flood Compensation Payments,Flood Compensation Payments,"5,000.00",An Individual
19/11/2021,Flood Compensation Payments,Flood Compensation Payments,"5,000.00",An Individual
15/11/2021,Other Expenses,Brewhouse Community Ticket Sales,"3,096.00",An Individual
29/09/2021,Other Expenses,Brewhouse Community Ticket Sales,636.00,An Individual
22/10/2021,Consultants,Environmental Health,588.00,An Individual
04/10/2021,Consultants,Environmental Health,644.00,An Individual
26/11/2021,Consultants,Management Local Outbreaks - SCC Grant Env Health (COVID-19),728.00,An Individual
10/10/2021,Arts Worker Fees,Arts Programme - Dance Development,545.00,An Individual
08/08/2021,Professional Support,Stronger Towns Fund,"1,000.00",An Individual
04/11/2021,Test and Trace Payments - Standard Scheme (COVID-19),Test and Trace Payments (COVID-19),500.00,An Individual
16/12/2021,Test and Trace Payments - Local Discretionary Scheme (COVID-19),Test and Trace Payments (COVID-19),500.00,An Individual
09/12/2021,Test and Trace Payments - Standard Scheme (COVID-19),Test and Trace Payments (COVID-19),500.00,An Individual
02/12/2021,Test and Trace Payments - Standard Scheme (COVID-19),Test and Trace Payments (COVID-19),500.00,An Individual
16/12/2021,Test and Trace Payments - Local Discretionary Scheme (COVID-19),Test and Trace Payments (COVID-19),500.00,An Individual
25/11/2021,Test and Trace Payments - Standard Scheme (COVID-19),Test and Trace Payments (COVID-19),500.00,An Individual
25/11/2021,Test and Trace Payments - Local Discretionary Scheme (COVID-19),Test and Trace Payments (COVID-19),500.00,An Individual
25/11/2021,Test and Trace Payments - Local Discretionary Scheme (COVID-19),Test and Trace Payments (COVID-19),500.00,An Individual
25/11/2021,Test and Trace Payments - Local Discretionary Scheme (COVID-19),Test and Trace Payments (COVID-19),500.00,An Individual
18/11/2021,Test and Trace Payments - Standard Scheme (COVID-19),Test and Trace Payments (COVID-19),500.00,An Individual
25/11/2021,Test and Trace Payments - Local Discretionary Scheme (COVID-19),Test and Trace Payments (COVID-19),500.00,An Individual
09/12/2021,Test and Trace Payments - Standard Scheme (COVID-19),Test and Trace Payments (COVID-19),500.00,An Individual
04/11/2021,Test and Trace Payments - Standard Scheme (COVID-19),Test and Trace Payments (COVID-19),500.00,An Individual
02/12/2021,Test and Trace Payments - Standard Scheme (COVID-19),Test and Trace Payments (COVID-19),500.00,An Individual
16/12/2021,Test and Trace Payments - Standard Scheme (COVID-19),Test and Trace Payments (COVID-19),500.00,An Individual
04/11/2021,Test and Trace Payments - Standard Scheme (COVID-19),Test and Trace Payments (COVID-19),500.00,An Individual
22/12/2021,Test and Trace Payments - Local Discretionary Scheme (COVID-19),Test and Trace Payments (COVID-19),500.00,An Individual
25/11/2021,Test and Trace Payments - Local Discretionary Scheme (COVID-19),Test and Trace Payments (COVID-19),500.00,An Individual
02/12/2021,Test and Trace Payments - Standard Scheme (COVID-19),Test and Trace Payments (COVID-19),500.00,An Individual
04/11/2021,Test and Trace Payments - Standard Scheme (COVID-19),Test and Trace Payments (COVID-19),500.00,An Individual
07/10/2021,Test and Trace Payments - Standard Scheme (COVID-19),Test and Trace Payments (COVID-19),500.00,An Individual
22/12/2021,Test and Trace Payments - Local Discretionary Scheme (COVID-19),Test and Trace Payments (COVID-19),500.00,An Individual
21/10/2021,Test and Trace Payments - Standard Scheme (COVID-19),Test and Trace Payments (COVID-19),500.00,An Individual
22/12/2021,Test and Trace Payments - Standard Scheme (COVID-19),Test and Trace Payments (COVID-19),500.00,An Individual
16/12/2021,Test and Trace Payments - Local Discretionary Scheme (COVID-19),Test and Trace Payments (COVID-19),500.00,An Individual
09/12/2021,Test and Trace Payments - Standard Scheme (COVID-19),Test and Trace Payments (COVID-19),500.00,An Individual
25/11/2021,Test and Trace Payments - Local Discretionary Scheme (COVID-19),Test and Trace Payments (COVID-19),500.00,An Individual
25/11/2021,Test and Trace Payments - Local Discretionary Scheme (COVID-19),Test and Trace Payments (COVID-19),500.00,An Individual
02/12/2021,Test and Trace Payments - Standard Scheme (COVID-19),Test and Trace Payments (COVID-19),500.00,An Individual
25/11/2021,Test and Trace Payments - Local Discretionary Scheme (COVID-19),Test and Trace Payments (COVID-19),500.00,An Individual
16/12/2021,Test and Trace Payments - Standard Scheme (COVID-19),Test and Trace Payments (COVID-19),500.00,An Individual
02/12/2021,Test and Trace Payments - Local Discretionary Scheme (COVID-19),Test and Trace Payments (COVID-19),500.00,An Individual
09/12/2021,Test and Trace Payments - Standard Scheme (COVID-19),Test and Trace Payments (COVID-19),500.00,An Individual
22/12/2021,Test and Trace Payments - Local Discretionary Scheme (COVID-19),Test and Trace Payments (COVID-19),500.00,An Individual
02/12/2021,Test and Trace Payments - Local Discretionary Scheme (COVID-19),Test and Trace Payments (COVID-19),500.00,An Individual
04/11/2021,Test and Trace Payments - Standard Scheme (COVID-19),Test and Trace Payments (COVID-19),500.00,An Individual
07/10/2021,Test and Trace Payments - Standard Scheme (COVID-19),Test and Trace Payments (COVID-19),500.00,An Individual
09/12/2021,Test and Trace Payments - Local Discretionary Scheme (COVID-19),Test and Trace Payments (COVID-19),500.00,An Individual
22/12/2021,Test and Trace Payments - Standard Scheme (COVID-19),Test and Trace Payments (COVID-19),500.00,An Individual
02/12/2021,Test and Trace Payments - Local Discretionary Scheme (COVID-19),Test and Trace Payments (COVID-19),500.00,An Individual
02/12/2021,Test and Trace Payments - Standard Scheme (COVID-19),Test and Trace Payments (COVID-19),500.00,An Individual
09/12/2021,Test and Trace Payments - Local Discretionary Scheme (COVID-19),Test and Trace Payments (COVID-19),500.00,An Individual
09/12/2021,Test and Trace Payments - Local Discretionary Scheme (COVID-19),Test and Trace Payments (COVID-19),500.00,An Individual
25/11/2021,Test and Trace Payments - Local Discretionary Scheme (COVID-19),Test and Trace Payments (COVID-19),500.00,An Individual
25/11/2021,Test and Trace Payments - Local Discretionary Scheme (COVID-19),Test and Trace Payments (COVID-19),500.00,An Individual
25/11/2021,Test and Trace Payments - Local Discretionary Scheme (COVID-19),Test and Trace Payments (COVID-19),500.00,An Individual
07/10/2021,Test and Trace Payments - Standard Scheme (COVID-19),Test and Trace Payments (COVID-19),500.00,An Individual
09/12/2021,Test and Trace Payments - Standard Scheme (COVID-19),Test and Trace Payments (COVID-19),500.00,An Individual
04/11/2021,Test and Trace Payments - Standard Scheme (COVID-19),Test and Trace Payments (COVID-19),500.00,An Individual
02/12/2021,Test and Trace Payments - Local Discretionary Scheme (COVID-19),Test and Trace Payments (COVID-19),500.00,An Individual
09/12/2021,Test and Trace Payments - Local Discretionary Scheme (COVID-19),Test and Trace Payments (COVID-19),500.00,An Individual
09/12/2021,Test and Trace Payments - Local Discretionary Scheme (COVID-19),Test and Trace Payments (COVID-19),500.00,An Individual
14/10/2021,Test and Trace Payments - Standard Scheme (COVID-19),Test and Trace Payments (COVID-19),500.00,An Individual
16/12/2021,Test and Trace Payments - Local Discretionary Scheme (COVID-19),Test and Trace Payments (COVID-19),500.00,An Individual
16/12/2021,Test and Trace Payments - Standard Scheme (COVID-19),Test and Trace Payments (COVID-19),500.00,An Individual
18/11/2021,Test and Trace Payments - Standard Scheme (COVID-19),Test and Trace Payments (COVID-19),500.00,An Individual
16/12/2021,Test and Trace Payments - Standard Scheme (COVID-19),Test and Trace Payments (COVID-19),500.00,An Individual
02/12/2021,Test and Trace Payments - Local Discretionary Scheme (COVID-19),Test and Trace Payments (COVID-19),500.00,An Individual
09/12/2021,Test and Trace Payments - Local Discretionary Scheme (COVID-19),Test and Trace Payments (COVID-19),500.00,An Individual
09/12/2021,Test and Trace Payments - Local Discretionary Scheme (COVID-19),Test and Trace Payments (COVID-19),500.00,An Individual
25/11/2021,Test and Trace Payments - Standard Scheme (COVID-19),Test and Trace Payments (COVID-19),500.00,An Individual
30/10/2021,Other Expenses,Brewhouse Community Ticket Sales,"4,956.00",An Individual
09/12/2021,Test and Trace Payments - Local Discretionary Scheme (COVID-19),Test and Trace Payments (COVID-19),500.00,An Individual
02/12/2021,Test and Trace Payments - Standard Scheme (COVID-19),Test and Trace Payments (COVID-19),500.00,An Individual
21/10/2021,Test and Trace Payments - Standard Scheme (COVID-19),Test and Trace Payments (COVID-19),500.00,An Individual
21/10/2021,Test and Trace Payments - Standard Scheme (COVID-19),Test and Trace Payments (COVID-19),500.00,An Individual
14/10/2021,Test and Trace Payments - Standard Scheme (COVID-19),Test and Trace Payments (COVID-19),500.00,An Individual
28/10/2021,Test and Trace Payments - Standard Scheme (COVID-19),Test and Trace Payments (COVID-19),500.00,An Individual
02/12/2021,Test and Trace Payments - Standard Scheme (COVID-19),Test and Trace Payments (COVID-19),500.00,An Individual
16/12/2021,Test and Trace Payments - Standard Scheme (COVID-19),Test and Trace Payments (COVID-19),500.00,An Individual
25/11/2021,Test and Trace Payments - Local Discretionary Scheme (COVID-19),Test and Trace Payments (COVID-19),500.00,An Individual
16/12/2021,Test and Trace Payments - Standard Scheme (COVID-19),Test and Trace Payments (COVID-19),500.00,An Individual
11/11/2021,Test and Trace Payments - Standard Scheme (COVID-19),Test and Trace Payments (COVID-19),500.00,An Individual
25/11/2021,Test and Trace Payments - Local Discretionary Scheme (COVID-19),Test and Trace Payments (COVID-19),500.00,An Individual
02/12/2021,Test and Trace Payments - Standard Scheme (COVID-19),Test and Trace Payments (COVID-19),500.00,An Individual
18/11/2021,Test and Trace Payments - Standard Scheme (COVID-19),Test and Trace Payments (COVID-19),500.00,An Individual
21/10/2021,Test and Trace Payments - Standard Scheme (COVID-19),Test and Trace Payments (COVID-19),500.00,An Individual
11/11/2021,Test and Trace Payments - Standard Scheme (COVID-19),Test and Trace Payments (COVID-19),500.00,An Individual
18/11/2021,Test and Trace Payments - Standard Scheme (COVID-19),Test and Trace Payments (COVID-19),500.00,An Individual
22/12/2021,Test and Trace Payments - Standard Scheme (COVID-19),Test and Trace Payments (COVID-19),500.00,An Individual
02/12/2021,Test and Trace Payments - Standard Scheme (COVID-19),Test and Trace Payments (COVID-19),500.00,An Individual
11/11/2021,Test and Trace Payments - Standard Scheme (COVID-19),Test and Trace Payments (COVID-19),500.00,An Individual
09/12/2021,Test and Trace Payments - Local Discretionary Scheme (COVID-19),Test and Trace Payments (COVID-19),500.00,An Individual
02/12/2021,Test and Trace Payments - Local Discretionary Scheme (COVID-19),Test and Trace Payments (COVID-19),500.00,An Individual
28/10/2021,Test and Trace Payments - Standard Scheme (COVID-19),Test and Trace Payments (COVID-19),500.00,An Individual
11/11/2021,Test and Trace Payments - Standard Scheme (COVID-19),Test and Trace Payments (COVID-19),500.00,An Individual
25/11/2021,Test and Trace Payments - Standard Scheme (COVID-19),Test and Trace Payments (COVID-19),500.00,An Individual
09/12/2021,Test and Trace Payments - Standard Scheme (COVID-19),Test and Trace Payments (COVID-19),500.00,An Individual
21/10/2021,Test and Trace Payments - Standard Scheme (COVID-19),Test and Trace Payments (COVID-19),500.00,An Individual
04/11/2021,Test and Trace Payments - Standard Scheme (COVID-19),Test and Trace Payments (COVID-19),500.00,An Individual
11/11/2021,Test and Trace Payments - Standard Scheme (COVID-19),Test and Trace Payments (COVID-19),500.00,An Individual
16/12/2021,Test and Trace Payments - Local Discretionary Scheme (COVID-19),Test and Trace Payments (COVID-19),500.00,An Individual
09/12/2021,Test and Trace Payments - Local Discretionary Scheme (COVID-19),Test and Trace Payments (COVID-19),500.00,An Individual
22/12/2021,Test and Trace Payments - Standard Scheme (COVID-19),Test and Trace Payments (COVID-19),500.00,An Individual
22/12/2021,Test and Trace Payments - Local Discretionary Scheme (COVID-19),Test and Trace Payments (COVID-19),500.00,An Individual
09/12/2021,Test and Trace Payments - Local Discretionary Scheme (COVID-19),Test and Trace Payments (COVID-19),500.00,An Individual
04/11/2021,Test and Trace Payments - Standard Scheme (COVID-19),Test and Trace Payments (COVID-19),500.00,An Individual
25/11/2021,Test and Trace Payments - Local Discretionary Scheme (COVID-19),Test and Trace Payments (COVID-19),500.00,An Individual
25/11/2021,Test and Trace Payments - Local Discretionary Scheme (COVID-19),Test and Trace Payments (COVID-19),500.00,An Individual
25/11/2021,Test and Trace Payments - Local Discretionary Scheme (COVID-19),Test and Trace Payments (COVID-19),500.00,An Individual
07/10/2021,Test and Trace Payments - Standard Scheme (COVID-19),Test and Trace Payments (COVID-19),500.00,An Individual
21/10/2021,Test and Trace Payments - Standard Scheme (COVID-19),Test and Trace Payments (COVID-19),500.00,An Individual
02/12/2021,Test and Trace Payments - Local Discretionary Scheme (COVID-19),Test and Trace Payments (COVID-19),500.00,An Individual
25/11/2021,Test and Trace Payments - Local Discretionary Scheme (COVID-19),Test and Trace Payments (COVID-19),500.00,An Individual
09/12/2021,Test and Trace Payments - Local Discretionary Scheme (COVID-19),Test and Trace Payments (COVID-19),500.00,An Individual
16/12/2021,Test and Trace Payments - Standard Scheme (COVID-19),Test and Trace Payments (COVID-19),500.00,An Individual
02/12/2021,Test and Trace Payments - Local Discretionary Scheme (COVID-19),Test and Trace Payments (COVID-19),500.00,An Individual
04/11/2021,Test and Trace Payments - Standard Scheme (COVID-19),Test and Trace Payments (COVID-19),500.00,An Individual
16/12/2021,Test and Trace Payments - Standard Scheme (COVID-19),Test and Trace Payments (COVID-19),500.00,An Individual
02/12/2021,Test and Trace Payments - Standard Scheme (COVID-19),Test and Trace Payments (COVID-19),500.00,An Individual
22/12/2021,Test and Trace Payments - Standard Scheme (COVID-19),Test and Trace Payments (COVID-19),500.00,An Individual
02/12/2021,Test and Trace Payments - Local Discretionary Scheme (COVID-19),Test and Trace Payments (COVID-19),500.00,An Individual
09/12/2021,Test and Trace Payments - Local Discretionary Scheme (COVID-19),Test and Trace Payments (COVID-19),500.00,An Individual
22/12/2021,Test and Trace Payments - Standard Scheme (COVID-19),Test and Trace Payments (COVID-19),500.00,An Individual
28/10/2021,Test and Trace Payments - Standard Scheme (COVID-19),Test and Trace Payments (COVID-19),500.00,An Individual
18/11/2021,Test and Trace Payments - Standard Scheme (COVID-19),Test and Trace Payments (COVID-19),500.00,An Individual
22/12/2021,Test and Trace Payments - Local Discretionary Scheme (COVID-19),Test and Trace Payments (COVID-19),500.00,An Individual
22/12/2021,Test and Trace Payments - Standard Scheme (COVID-19),Test and Trace Payments (COVID-19),500.00,An Individual
18/11/2021,Test and Trace Payments - Standard Scheme (COVID-19),Test and Trace Payments (COVID-19),500.00,An Individual
22/12/2021,Test and Trace Payments - Local Discretionary Scheme (COVID-19),Test and Trace Payments (COVID-19),500.00,An Individual
25/11/2021,Test and Trace Payments - Standard Scheme (COVID-19),Test and Trace Payments (COVID-19),500.00,An Individual
16/12/2021,Test and Trace Payments - Standard Scheme (COVID-19),Test and Trace Payments (COVID-19),500.00,An Individual
25/11/2021,Test and Trace Payments - Local Discretionary Scheme (COVID-19),Test and Trace Payments (COVID-19),500.00,An Individual
22/12/2021,Test and Trace Payments - Local Discretionary Scheme (COVID-19),Test and Trace Payments (COVID-19),500.00,An Individual
16/12/2021,Test and Trace Payments - Standard Scheme (COVID-19),Test and Trace Payments (COVID-19),500.00,An Individual
28/10/2021,Test and Trace Payments - Standard Scheme (COVID-19),Test and Trace Payments (COVID-19),500.00,An Individual
21/10/2021,Test and Trace Payments - Standard Scheme (COVID-19),Test and Trace Payments (COVID-19),500.00,An Individual
18/11/2021,Test and Trace Payments - Standard Scheme (COVID-19),Test and Trace Payments (COVID-19),500.00,An Individual
14/10/2021,Test and Trace Payments - Standard Scheme (COVID-19),Test and Trace Payments (COVID-19),500.00,An Individual
11/11/2021,Test and Trace Payments - Standard Scheme (COVID-19),Test and Trace Payments (COVID-19),500.00,An Individual
09/12/2021,Test and Trace Payments - Standard Scheme (COVID-19),Test and Trace Payments (COVID-19),500.00,An Individual
25/11/2021,Test and Trace Payments - Standard Scheme (COVID-19),Test and Trace Payments (COVID-19),500.00,An Individual
21/10/2021,Test and Trace Payments - Standard Scheme (COVID-19),Test and Trace Payments (COVID-19),500.00,An Individual
09/12/2021,Test and Trace Payments - Local Discretionary Scheme (COVID-19),Test and Trace Payments (COVID-19),500.00,An Individual
09/12/2021,Test and Trace Payments - Local Discretionary Scheme (COVID-19),Test and Trace Payments (COVID-19),500.00,An Individual
28/10/2021,Test and Trace Payments - Standard Scheme (COVID-19),Test and Trace Payments (COVID-19),500.00,An Individual
22/12/2021,Test and Trace Payments - Standard Scheme (COVID-19),Test and Trace Payments (COVID-19),500.00,An Individual
09/12/2021,Test and Trace Payments - Standard Scheme (COVID-19),Test and Trace Payments (COVID-19),500.00,An Individual
11/11/2021,Test and Trace Payments - Standard Scheme (COVID-19),Test and Trace Payments (COVID-19),500.00,An Individual
09/12/2021,Test and Trace Payments - Standard Scheme (COVID-19),Test and Trace Payments (COVID-19),500.00,An Individual
16/12/2021,Test and Trace Payments - Local Discretionary Scheme (COVID-19),Test and Trace Payments (COVID-19),500.00,An Individual
09/12/2021,Test and Trace Payments - Local Discretionary Scheme (COVID-19),Test and Trace Payments (COVID-19),500.00,An Individual
22/12/2021,Test and Trace Payments - Standard Scheme (COVID-19),Test and Trace Payments (COVID-19),500.00,An Individual
16/12/2021,Test and Trace Payments - Local Discretionary Scheme (COVID-19),Test and Trace Payments (COVID-19),500.00,An Individual
25/11/2021,Test and Trace Payments - Standard Scheme (COVID-19),Test and Trace Payments (COVID-19),500.00,An Individual
16/12/2021,Test and Trace Payments - Standard Scheme (COVID-19),Test and Trace Payments (COVID-19),500.00,An Individual
16/12/2021,Test and Trace Payments - Local Discretionary Scheme (COVID-19),Test and Trace Payments (COVID-19),500.00,An Individual
02/12/2021,Test and Trace Payments - Standard Scheme (COVID-19),Test and Trace Payments (COVID-19),500.00,An Individual
22/12/2021,Test and Trace Payments - Standard Scheme (COVID-19),Test and Trace Payments (COVID-19),500.00,An Individual
09/12/2021,Test and Trace Payments - Standard Scheme (COVID-19),Test and Trace Payments (COVID-19),500.00,An Individual
07/10/2021,Test and Trace Payments - Standard Scheme (COVID-19),Test and Trace Payments (COVID-19),500.00,An Individual
18/11/2021,Test and Trace Payments - Standard Scheme (COVID-19),Test and Trace Payments (COVID-19),500.00,An Individual
02/12/2021,Test and Trace Payments - Standard Scheme (COVID-19),Test and Trace Payments (COVID-19),500.00,An Individual
21/10/2021,Test and Trace Payments - Standard Scheme (COVID-19),Test and Trace Payments (COVID-19),500.00,An Individual
28/10/2021,Test and Trace Payments - Standard Scheme (COVID-19),Test and Trace Payments (COVID-19),500.00,An Individual
22/12/2021,Test and Trace Payments - Standard Scheme (COVID-19),Test and Trace Payments (COVID-19),500.00,An Individual
21/10/2021,Test and Trace Payments - Standard Scheme (COVID-19),Test and Trace Payments (COVID-19),500.00,An Individual
21/10/2021,Test and Trace Payments - Standard Scheme (COVID-19),Test and Trace Payments (COVID-19),500.00,An Individual
18/11/2021,Test and Trace Payments - Standard Scheme (COVID-19),Test and Trace Payments (COVID-19),500.00,An Individual
09/12/2021,Test and Trace Payments - Standard Scheme (COVID-19),Test and Trace Payments (COVID-19),500.00,An Individual
18/11/2021,Test and Trace Payments - Standard Scheme (COVID-19),Test and Trace Payments (COVID-19),500.00,An Individual
25/11/2021,Test and Trace Payments - Local Discretionary Scheme (COVID-19),Test and Trace Payments (COVID-19),500.00,An Individual
16/12/2021,Test and Trace Payments - Standard Scheme (COVID-19),Test and Trace Payments (COVID-19),500.00,An Individual
22/12/2021,Test and Trace Payments - Local Discretionary Scheme (COVID-19),Test and Trace Payments (COVID-19),500.00,An Individual
22/12/2021,Test and Trace Payments - Local Discretionary Scheme (COVID-19),Test and Trace Payments (COVID-19),500.00,An Individual
02/12/2021,Test and Trace Payments - Standard Scheme (COVID-19),Test and Trace Payments (COVID-19),500.00,An Individual
02/12/2021,Test and Trace Payments - Local Discretionary Scheme (COVID-19),Test and Trace Payments (COVID-19),500.00,An Individual
07/10/2021,Test and Trace Payments - Standard Scheme (COVID-19),Test and Trace Payments (COVID-19),500.00,An Individual
18/11/2021,Test and Trace Payments - Standard Scheme (COVID-19),Test and Trace Payments (COVID-19),500.00,An Individual
02/12/2021,Test and Trace Payments - Standard Scheme (COVID-19),Test and Trace Payments (COVID-19),500.00,An Individual
09/12/2021,Test and Trace Payments - Local Discretionary Scheme (COVID-19),Test and Trace Payments (COVID-19),500.00,An Individual
02/12/2021,Test and Trace Payments - Local Discretionary Scheme (COVID-19),Test and Trace Payments (COVID-19),500.00,An Individual
25/11/2021,Test and Trace Payments - Local Discretionary Scheme (COVID-19),Test and Trace Payments (COVID-19),500.00,An Individual
22/12/2021,Test and Trace Payments - Local Discretionary Scheme (COVID-19),Test and Trace Payments (COVID-19),500.00,An Individual
09/12/2021,Test and Trace Payments - Standard Scheme (COVID-19),Test and Trace Payments (COVID-19),500.00,An Individual
21/10/2021,Test and Trace Payments - Standard Scheme (COVID-19),Test and Trace Payments (COVID-19),500.00,An Individual
16/12/2021,Test and Trace Payments - Standard Scheme (COVID-19),Test and Trace Payments (COVID-19),500.00,An Individual
25/11/2021,Test and Trace Payments - Local Discretionary Scheme (COVID-19),Test and Trace Payments (COVID-19),500.00,An Individual
21/10/2021,Test and Trace Payments - Standard Scheme (COVID-19),Test and Trace Payments (COVID-19),500.00,An Individual
16/12/2021,Test and Trace Payments - Local Discretionary Scheme (COVID-19),Test and Trace Payments (COVID-19),500.00,An Individual
07/10/2021,Test and Trace Payments - Standard Scheme (COVID-19),Test and Trace Payments (COVID-19),500.00,An Individual
16/12/2021,Test and Trace Payments - Standard Scheme (COVID-19),Test and Trace Payments (COVID-19),500.00,An Individual
09/12/2021,Test and Trace Payments - Standard Scheme (COVID-19),Test and Trace Payments (COVID-19),500.00,An Individual
09/12/2021,Test and Trace Payments - Standard Scheme (COVID-19),Test and Trace Payments (COVID-19),500.00,An Individual
25/11/2021,Test and Trace Payments - Local Discretionary Scheme (COVID-19),Test and Trace Payments (COVID-19),500.00,An Individual
25/11/2021,Test and Trace Payments - Local Discretionary Scheme (COVID-19),Test and Trace Payments (COVID-19),500.00,An Individual
25/11/2021,Test and Trace Payments - Local Discretionary Scheme (COVID-19),Test and Trace Payments (COVID-19),500.00,An Individual
28/10/2021,Test and Trace Payments - Standard Scheme (COVID-19),Test and Trace Payments (COVID-19),500.00,An Individual
14/10/2021,Test and Trace Payments - Standard Scheme (COVID-19),Test and Trace Payments (COVID-19),500.00,An Individual
25/11/2021,Test and Trace Payments - Local Discretionary Scheme (COVID-19),Test and Trace Payments (COVID-19),500.00,An Individual
14/10/2021,Test and Trace Payments - Standard Scheme (COVID-19),Test and Trace Payments (COVID-19),500.00,An Individual
09/12/2021,Test and Trace Payments - Local Discretionary Scheme (COVID-19),Test and Trace Payments (COVID-19),500.00,An Individual
18/11/2021,Test and Trace Payments - Standard Scheme (COVID-19),Test and Trace Payments (COVID-19),500.00,An Individual
11/11/2021,Test and Trace Payments - Standard Scheme (COVID-19),Test and Trace Payments (COVID-19),500.00,An Individual
22/12/2021,Test and Trace Payments - Local Discretionary Scheme (COVID-19),Test and Trace Payments (COVID-19),500.00,An Individual
07/10/2021,Test and Trace Payments - Standard Scheme (COVID-19),Test and Trace Payments (COVID-19),500.00,An Individual
09/12/2021,Test and Trace Payments - Standard Scheme (COVID-19),Test and Trace Payments (COVID-19),500.00,An Individual
25/11/2021,Test and Trace Payments - Local Discretionary Scheme (COVID-19),Test and Trace Payments (COVID-19),500.00,An Individual
09/12/2021,Test and Trace Payments - Local Discretionary Scheme (COVID-19),Test and Trace Payments (COVID-19),500.00,An Individual
22/12/2021,Test and Trace Payments - Local Discretionary Scheme (COVID-19),Test and Trace Payments (COVID-19),500.00,An Individual
16/12/2021,Test and Trace Payments - Local Discretionary Scheme (COVID-19),Test and Trace Payments (COVID-19),500.00,An Individual
21/10/2021,Test and Trace Payments - Standard Scheme (COVID-19),Test and Trace Payments (COVID-19),500.00,An Individual
16/12/2021,Test and Trace Payments - Standard Scheme (COVID-19),Test and Trace Payments (COVID-19),500.00,An Individual
25/11/2021,Test and Trace Payments - Local Discretionary Scheme (COVID-19),Test and Trace Payments (COVID-19),500.00,An Individual
25/11/2021,Test and Trace Payments - Local Discretionary Scheme (COVID-19),Test and Trace Payments (COVID-19),500.00,An Individual
22/12/2021,Test and Trace Payments - Local Discretionary Scheme (COVID-19),Test and Trace Payments (COVID-19),500.00,An Individual
16/12/2021,Test and Trace Payments - Standard Scheme (COVID-19),Test and Trace Payments (COVID-19),500.00,An Individual
22/12/2021,Test and Trace Payments - Local Discretionary Scheme (COVID-19),Test and Trace Payments (COVID-19),500.00,An Individual
09/12/2021,Test and Trace Payments - Local Discretionary Scheme (COVID-19),Test and Trace Payments (COVID-19),500.00,An Individual
02/12/2021,Test and Trace Payments - Local Discretionary Scheme (COVID-19),Test and Trace Payments (COVID-19),500.00,An Individual
09/12/2021,Test and Trace Payments - Local Discretionary Scheme (COVID-19),Test and Trace Payments (COVID-19),500.00,An Individual
07/10/2021,Test and Trace Payments - Standard Scheme (COVID-19),Test and Trace Payments (COVID-19),500.00,An Individual
25/11/2021,Test and Trace Payments - Local Discretionary Scheme (COVID-19),Test and Trace Payments (COVID-19),500.00,An Individual
07/10/2021,Test and Trace Payments - Standard Scheme (COVID-19),Test and Trace Payments (COVID-19),500.00,An Individual
21/10/2021,Test and Trace Payments - Standard Scheme (COVID-19),Test and Trace Payments (COVID-19),500.00,An Individual
04/11/2021,Test and Trace Payments - Standard Scheme (COVID-19),Test and Trace Payments (COVID-19),500.00,An Individual
09/12/2021,Test and Trace Payments - Local Discretionary Scheme (COVID-19),Test and Trace Payments (COVID-19),500.00,An Individual
09/12/2021,Test and Trace Payments - Standard Scheme (COVID-19),Test and Trace Payments (COVID-19),500.00,An Individual
09/12/2021,Test and Trace Payments - Local Discretionary Scheme (COVID-19),Test and Trace Payments (COVID-19),500.00,An Individual
16/12/2021,Test and Trace Payments - Standard Scheme (COVID-19),Test and Trace Payments (COVID-19),500.00,An Individual
22/12/2021,Test and Trace Payments - Local Discretionary Scheme (COVID-19),Test and Trace Payments (COVID-19),500.00,An Individual
16/12/2021,Test and Trace Payments - Local Discretionary Scheme (COVID-19),Test and Trace Payments (COVID-19),500.00,An Individual
16/12/2021,Test and Trace Payments - Standard Scheme (COVID-19),Test and Trace Payments (COVID-19),500.00,An Individual
22/12/2021,Test and Trace Payments - Standard Scheme (COVID-19),Test and Trace Payments (COVID-19),500.00,An Individual
09/12/2021,Test and Trace Payments - Local Discretionary Scheme (COVID-19),Test and Trace Payments (COVID-19),500.00,An Individual
21/10/2021,Test and Trace Payments - Standard Scheme (COVID-19),Test and Trace Payments (COVID-19),500.00,An Individual
25/11/2021,Test and Trace Payments - Local Discretionary Scheme (COVID-19),Test and Trace Payments (COVID-19),500.00,An Individual
22/12/2021,Test and Trace Payments - Local Discretionary Scheme (COVID-19),Test and Trace Payments (COVID-19),500.00,An Individual
09/12/2021,Test and Trace Payments - Standard Scheme (COVID-19),Test and Trace Payments (COVID-19),500.00,An Individual
02/12/2021,Test and Trace Payments - Standard Scheme (COVID-19),Test and Trace Payments (COVID-19),500.00,An Individual
02/12/2021,Test and Trace Payments - Local Discretionary Scheme (COVID-19),Test and Trace Payments (COVID-19),500.00,An Individual
18/11/2021,Test and Trace Payments - Standard Scheme (COVID-19),Test and Trace Payments (COVID-19),500.00,An Individual
16/12/2021,Test and Trace Payments - Local Discretionary Scheme (COVID-19),Test and Trace Payments (COVID-19),500.00,An Individual
28/10/2021,Flood Compensation Payments,Flood Compensation Payments,"5,000.00",An Individual
02/12/2021,Test and Trace Payments - Local Discretionary Scheme (COVID-19),Test and Trace Payments (COVID-19),500.00,An Individual
25/11/2021,Test and Trace Payments - Local Discretionary Scheme (COVID-19),Test and Trace Payments (COVID-19),500.00,An Individual
22/12/2021,Test and Trace Payments - Local Discretionary Scheme (COVID-19),Test and Trace Payments (COVID-19),500.00,An Individual
22/12/2021,Test and Trace Payments - Local Discretionary Scheme (COVID-19),Test and Trace Payments (COVID-19),500.00,An Individual
04/11/2021,Test and Trace Payments - Standard Scheme (COVID-19),Test and Trace Payments (COVID-19),500.00,An Individual
09/12/2021,Test and Trace Payments - Local Discretionary Scheme (COVID-19),Test and Trace Payments (COVID-19),500.00,An Individual
02/12/2021,Test and Trace Payments - Local Discretionary Scheme (COVID-19),Test and Trace Payments (COVID-19),500.00,An Individual
02/12/2021,Test and Trace Payments - Standard Scheme (COVID-19),Test and Trace Payments (COVID-19),500.00,An Individual
25/11/2021,Test and Trace Payments - Local Discretionary Scheme (COVID-19),Test and Trace Payments (COVID-19),500.00,An Individual
04/11/2021,Test and Trace Payments - Standard Scheme (COVID-19),Test and Trace Payments (COVID-19),500.00,An Individual
09/12/2021,Test and Trace Payments - Local Discretionary Scheme (COVID-19),Test and Trace Payments (COVID-19),500.00,An Individual
25/11/2021,Test and Trace Payments - Standard Scheme (COVID-19),Test and Trace Payments (COVID-19),500.00,An Individual
09/12/2021,Test and Trace Payments - Standard Scheme (COVID-19),Test and Trace Payments (COVID-19),500.00,An Individual
25/11/2021,Test and Trace Payments - Local Discretionary Scheme (COVID-19),Test and Trace Payments (COVID-19),500.00,An Individual
22/12/2021,Test and Trace Payments - Local Discretionary Scheme (COVID-19),Test and Trace Payments (COVID-19),500.00,An Individual
02/12/2021,Test and Trace Payments - Local Discretionary Scheme (COVID-19),Test and Trace Payments (COVID-19),500.00,An Individual
09/12/2021,Test and Trace Payments - Local Discretionary Scheme (COVID-19),Test and Trace Payments (COVID-19),500.00,An Individual
22/12/2021,Test and Trace Payments - Local Discretionary Scheme (COVID-19),Test and Trace Payments (COVID-19),500.00,An Individual
25/11/2021,Test and Trace Payments - Local Discretionary Scheme (COVID-19),Test and Trace Payments (COVID-19),500.00,An Individual
25/11/2021,Test and Trace Payments - Local Discretionary Scheme (COVID-19),Test and Trace Payments (COVID-19),500.00,An Individual
22/12/2021,Test and Trace Payments - Local Discretionary Scheme (COVID-19),Test and Trace Payments (COVID-19),500.00,An Individual
22/12/2021,Test and Trace Payments - Local Discretionary Scheme (COVID-19),Test and Trace Payments (COVID-19),500.00,An Individual
25/11/2021,Test and Trace Payments - Standard Scheme (COVID-19),Test and Trace Payments (COVID-19),500.00,An Individual
22/12/2021,Test and Trace Payments - Local Discretionary Scheme (COVID-19),Test and Trace Payments (COVID-19),500.00,An Individual
14/10/2021,Test and Trace Payments - Standard Scheme (COVID-19),Test and Trace Payments (COVID-19),500.00,An Individual
16/12/2021,Test and Trace Payments - Local Discretionary Scheme (COVID-19),Test and Trace Payments (COVID-19),500.00,An Individual
09/12/2021,Test and Trace Payments - Local Discretionary Scheme (COVID-19),Test and Trace Payments (COVID-19),500.00,An Individual
18/11/2021,Test and Trace Payments - Standard Scheme (COVID-19),Test and Trace Payments (COVID-19),500.00,An Individual
22/12/2021,Test and Trace Payments - Local Discretionary Scheme (COVID-19),Test and Trace Payments (COVID-19),500.00,An Individual
28/10/2021,Test and Trace Payments - Standard Scheme (COVID-19),Test and Trace Payments (COVID-19),500.00,An Individual
22/12/2021,Test and Trace Payments - Local Discretionary Scheme (COVID-19),Test and Trace Payments (COVID-19),500.00,An Individual
25/11/2021,Test and Trace Payments - Local Discretionary Scheme (COVID-19),Test and Trace Payments (COVID-19),500.00,An Individual
21/10/2021,Test and Trace Payments - Standard Scheme (COVID-19),Test and Trace Payments (COVID-19),500.00,An Individual
16/12/2021,Test and Trace Payments - Local Discretionary Scheme (COVID-19),Test and Trace Payments (COVID-19),500.00,An Individual
02/12/2021,Test and Trace Payments - Local Discretionary Scheme (COVID-19),Test and Trace Payments (COVID-19),500.00,An Individual
04/11/2021,Test and Trace Payments - Standard Scheme (COVID-19),Test and Trace Payments (COVID-19),500.00,An Individual
09/12/2021,Test and Trace Payments - Local Discretionary Scheme (COVID-19),Test and Trace Payments (COVID-19),500.00,An Individual
04/11/2021,Test and Trace Payments - Standard Scheme (COVID-19),Test and Trace Payments (COVID-19),500.00,An Individual
02/12/2021,Test and Trace Payments - Standard Scheme (COVID-19),Test and Trace Payments (COVID-19),500.00,An Individual
22/12/2021,Test and Trace Payments - Local Discretionary Scheme (COVID-19),Test and Trace Payments (COVID-19),500.00,An Individual
25/11/2021,Test and Trace Payments - Local Discretionary Scheme (COVID-19),Test and Trace Payments (COVID-19),500.00,An Individual
02/12/2021,Test and Trace Payments - Local Discretionary Scheme (COVID-19),Test and Trace Payments (COVID-19),500.00,An Individual
16/12/2021,Test and Trace Payments - Standard Scheme (COVID-19),Test and Trace Payments (COVID-19),500.00,An Individual
21/10/2021,Test and Trace Payments - Standard Scheme (COVID-19),Test and Trace Payments (COVID-19),500.00,An Individual
16/12/2021,Test and Trace Payments - Local Discretionary Scheme (COVID-19),Test and Trace Payments (COVID-19),500.00,An Individual
28/10/2021,Test and Trace Payments - Standard Scheme (COVID-19),Test and Trace Payments (COVID-19),500.00,An Individual
18/11/2021,Test and Trace Payments - Standard Scheme (COVID-19),Test and Trace Payments (COVID-19),500.00,An Individual
28/10/2021,Test and Trace Payments - Standard Scheme (COVID-19),Test and Trace Payments (COVID-19),500.00,An Individual
02/12/2021,Test and Trace Payments - Standard Scheme (COVID-19),Test and Trace Payments (COVID-19),500.00,An Individual
22/12/2021,Test and Trace Payments - Standard Scheme (COVID-19),Test and Trace Payments (COVID-19),500.00,An Individual
09/12/2021,Test and Trace Payments - Local Discretionary Scheme (COVID-19),Test and Trace Payments (COVID-19),500.00,An Individual
16/12/2021,Test and Trace Payments - Local Discretionary Scheme (COVID-19),Test and Trace Payments (COVID-19),500.00,An Individual
25/11/2021,Test and Trace Payments - Local Discretionary Scheme (COVID-19),Test and Trace Payments (COVID-19),500.00,An Individual
09/12/2021,Test and Trace Payments - Local Discretionary Scheme (COVID-19),Test and Trace Payments (COVID-19),500.00,An Individual
02/12/2021,Test and Trace Payments - Local Discretionary Scheme (COVID-19),Test and Trace Payments (COVID-19),500.00,An Individual
16/12/2021,Test and Trace Payments - Standard Scheme (COVID-19),Test and Trace Payments (COVID-19),500.00,An Individual
04/11/2021,Test and Trace Payments - Standard Scheme (COVID-19),Test and Trace Payments (COVID-19),500.00,An Individual
09/12/2021,Test and Trace Payments - Standard Scheme (COVID-19),Test and Trace Payments (COVID-19),500.00,An Individual
09/12/2021,Test and Trace Payments - Local Discretionary Scheme (COVID-19),Test and Trace Payments (COVID-19),500.00,An Individual
11/11/2021,Test and Trace Payments - Standard Scheme (COVID-19),Test and Trace Payments (COVID-19),500.00,An Individual
18/11/2021,Test and Trace Payments - Standard Scheme (COVID-19),Test and Trace Payments (COVID-19),500.00,An Individual
04/11/2021,Test and Trace Payments - Standard Scheme (COVID-19),Test and Trace Payments (COVID-19),500.00,An Individual
22/12/2021,Test and Trace Payments - Standard Scheme (COVID-19),Test and Trace Payments (COVID-19),500.00,An Individual
14/10/2021,Test and Trace Payments - Standard Scheme (COVID-19),Test and Trace Payments (COVID-19),500.00,An Individual
09/12/2021,Test and Trace Payments - Local Discretionary Scheme (COVID-19),Test and Trace Payments (COVID-19),500.00,An Individual
25/11/2021,Test and Trace Payments - Local Discretionary Scheme (COVID-19),Test and Trace Payments (COVID-19),500.00,An Individual
16/12/2021,Test and Trace Payments - Local Discretionary Scheme (COVID-19),Test and Trace Payments (COVID-19),500.00,An Individual
09/12/2021,Test and Trace Payments - Local Discretionary Scheme (COVID-19),Test and Trace Payments (COVID-19),500.00,An Individual
14/10/2021,Test and Trace Payments - Standard Scheme (COVID-19),Test and Trace Payments (COVID-19),500.00,An Individual
04/11/2021,Test and Trace Payments - Standard Scheme (COVID-19),Test and Trace Payments (COVID-19),500.00,An Individual
02/12/2021,Test and Trace Payments - Local Discretionary Scheme (COVID-19),Test and Trace Payments (COVID-19),500.00,An Individual
02/12/2021,Test and Trace Payments - Standard Scheme (COVID-19),Test and Trace Payments (COVID-19),500.00,An Individual
07/10/2021,Test and Trace Payments - Standard Scheme (COVID-19),Test and Trace Payments (COVID-19),500.00,An Individual
22/12/2021,Test and Trace Payments - Local Discretionary Scheme (COVID-19),Test and Trace Payments (COVID-19),500.00,An Individual
18/11/2021,Test and Trace Payments - Standard Scheme (COVID-19),Test and Trace Payments (COVID-19),500.00,An Individual
22/12/2021,Test and Trace Payments - Local Discretionary Scheme (COVID-19),Test and Trace Payments (COVID-19),500.00,An Individual
22/12/2021,Test and Trace Payments - Standard Scheme (COVID-19),Test and Trace Payments (COVID-19),500.00,An Individual
01/11/2021,Advance of Salary,Advance of Salary,"1,079.29",An Individual
07/12/2021,Advance of Salary,Advance of Salary,"1,079.29",An Individual
25/11/2021,Test and Trace Payments - Local Discretionary Scheme (COVID-19),Test and Trace Payments (COVID-19),500.00,An Individual
04/11/2021,Test and Trace Payments - Standard Scheme (COVID-19),Test and Trace Payments (COVID-19),500.00,An Individual
22/12/2021,Test and Trace Payments - Local Discretionary Scheme (COVID-19),Test and Trace Payments (COVID-19),500.00,An Individual
02/12/2021,Test and Trace Payments - Local Discretionary Scheme (COVID-19),Test and Trace Payments (COVID-19),500.00,An Individual
22/12/2021,Test and Trace Payments - Local Discretionary Scheme (COVID-19),Test and Trace Payments (COVID-19),500.00,An Individual
16/12/2021,Test and Trace Payments - Local Discretionary Scheme (COVID-19),Test and Trace Payments (COVID-19),500.00,An Individual
25/11/2021,Test and Trace Payments - Local Discretionary Scheme (COVID-19),Test and Trace Payments (COVID-19),500.00,An Individual
02/12/2021,Test and Trace Payments - Local Discretionary Scheme (COVID-19),Test and Trace Payments (COVID-19),500.00,An Individual
16/12/2021,Test and Trace Payments - Local Discretionary Scheme (COVID-19),Test and Trace Payments (COVID-19),500.00,An Individual
09/12/2021,Test and Trace Payments - Local Discretionary Scheme (COVID-19),Test and Trace Payments (COVID-19),500.00,An Individual
16/12/2021,Test and Trace Payments - Local Discretionary Scheme (COVID-19),Test and Trace Payments (COVID-19),500.00,An Individual
25/11/2021,Test and Trace Payments - Local Discretionary Scheme (COVID-19),Test and Trace Payments (COVID-19),500.00,An Individual
11/11/2021,Test and Trace Payments - Standard Scheme (COVID-19),Test and Trace Payments (COVID-19),500.00,An Individual
22/12/2021,Test and Trace Payments - Local Discretionary Scheme (COVID-19),Test and Trace Payments (COVID-19),500.00,An Individual
22/12/2021,Test and Trace Payments - Standard Scheme (COVID-19),Test and Trace Payments (COVID-19),500.00,An Individual
09/12/2021,Test and Trace Payments - Local Discretionary Scheme (COVID-19),Test and Trace Payments (COVID-19),500.00,An Individual
16/12/2021,Test and Trace Payments - Standard Scheme (COVID-19),Test and Trace Payments (COVID-19),500.00,An Individual
22/12/2021,Test and Trace Payments - Local Discretionary Scheme (COVID-19),Test and Trace Payments (COVID-19),500.00,An Individual
21/10/2021,Test and Trace Payments - Standard Scheme (COVID-19),Test and Trace Payments (COVID-19),500.00,An Individual
02/12/2021,Test and Trace Payments - Local Discretionary Scheme (COVID-19),Test and Trace Payments (COVID-19),500.00,An Individual
28/10/2021,Test and Trace Payments - Standard Scheme (COVID-19),Test and Trace Payments (COVID-19),500.00,An Individual
09/12/2021,Test and Trace Payments - Local Discretionary Scheme (COVID-19),Test and Trace Payments (COVID-19),500.00,An Individual
22/12/2021,Test and Trace Payments - Local Discretionary Scheme (COVID-19),Test and Trace Payments (COVID-19),500.00,An Individual
11/11/2021,Test and Trace Payments - Standard Scheme (COVID-19),Test and Trace Payments (COVID-19),500.00,An Individual
22/12/2021,Test and Trace Payments - Local Discretionary Scheme (COVID-19),Test and Trace Payments (COVID-19),500.00,An Individual
25/11/2021,Test and Trace Payments - Local Discretionary Scheme (COVID-19),Test and Trace Payments (COVID-19),500.00,An Individual
22/12/2021,Test and Trace Payments - Standard Scheme (COVID-19),Test and Trace Payments (COVID-19),500.00,An Individual
25/11/2021,Test and Trace Payments - Local Discretionary Scheme (COVID-19),Test and Trace Payments (COVID-19),500.00,An Individual
16/12/2021,Test and Trace Payments - Local Discretionary Scheme (COVID-19),Test and Trace Payments (COVID-19),500.00,An Individual
16/12/2021,Test and Trace Payments - Local Discretionary Scheme (COVID-19),Test and Trace Payments (COVID-19),500.00,An Individual
02/12/2021,Test and Trace Payments - Local Discretionary Scheme (COVID-19),Test and Trace Payments (COVID-19),500.00,An Individual
11/11/2021,Test and Trace Payments - Standard Scheme (COVID-19),Test and Trace Payments (COVID-19),500.00,An Individual
09/12/2021,Test and Trace Payments - Local Discretionary Scheme (COVID-19),Test and Trace Payments (COVID-19),500.00,An Individual
22/12/2021,Test and Trace Payments - Local Discretionary Scheme (COVID-19),Test and Trace Payments (COVID-19),500.00,An Individual
16/12/2021,Test and Trace Payments - Standard Scheme (COVID-19),Test and Trace Payments (COVID-19),500.00,An Individual
25/11/2021,Test and Trace Payments - Standard Scheme (COVID-19),Test and Trace Payments (COVID-19),500.00,An Individual
16/12/2021,Test and Trace Payments - Standard Scheme (COVID-19),Test and Trace Payments (COVID-19),500.00,An Individual
02/12/2021,Test and Trace Payments - Standard Scheme (COVID-19),Test and Trace Payments (COVID-19),500.00,An Individual
22/12/2021,Test and Trace Payments - Standard Scheme (COVID-19),Test and Trace Payments (COVID-19),500.00,An Individual
09/12/2021,Test and Trace Payments - Local Discretionary Scheme (COVID-19),Test and Trace Payments (COVID-19),500.00,An Individual
07/10/2021,Test and Trace Payments - Standard Scheme (COVID-19),Test and Trace Payments (COVID-19),500.00,An Individual
22/12/2021,Test and Trace Payments - Local Discretionary Scheme (COVID-19),Test and Trace Payments (COVID-19),500.00,An Individual
02/12/2021,Test and Trace Payments - Local Discretionary Scheme (COVID-19),Test and Trace Payments (COVID-19),500.00,An Individual
09/12/2021,Test and Trace Payments - Local Discretionary Scheme (COVID-19),Test and Trace Payments (COVID-19),500.00,An Individual
14/10/2021,Test and Trace Payments - Standard Scheme (COVID-19),Test and Trace Payments (COVID-19),500.00,An Individual
22/12/2021,Test and Trace Payments - Local Discretionary Scheme (COVID-19),Test and Trace Payments (COVID-19),500.00,An Individual
28/10/2021,Test and Trace Payments - Standard Scheme (COVID-19),Test and Trace Payments (COVID-19),500.00,An Individual
11/11/2021,Test and Trace Payments - Standard Scheme (COVID-19),Test and Trace Payments (COVID-19),500.00,An Individual
09/12/2021,Test and Trace Payments - Standard Scheme (COVID-19),Test and Trace Payments (COVID-19),500.00,An Individual
02/12/2021,Test and Trace Payments - Standard Scheme (COVID-19),Test and Trace Payments (COVID-19),500.00,An Individual
25/11/2021,Test and Trace Payments - Local Discretionary Scheme (COVID-19),Test and Trace Payments (COVID-19),500.00,An Individual
02/12/2021,Test and Trace Payments - Local Discretionary Scheme (COVID-19),Test and Trace Payments (COVID-19),500.00,An Individual
09/12/2021,Test and Trace Payments - Local Discretionary Scheme (COVID-19),Test and Trace Payments (COVID-19),500.00,An Individual
22/12/2021,Test and Trace Payments - Local Discretionary Scheme (COVID-19),Test and Trace Payments (COVID-19),500.00,An Individual
02/12/2021,Test and Trace Payments - Local Discretionary Scheme (COVID-19),Test and Trace Payments (COVID-19),500.00,An Individual
22/12/2021,Test and Trace Payments - Local Discretionary Scheme (COVID-19),Test and Trace Payments (COVID-19),500.00,An Individual
16/12/2021,Test and Trace Payments - Local Discretionary Scheme (COVID-19),Test and Trace Payments (COVID-19),500.00,An Individual
28/10/2021,Test and Trace Payments - Standard Scheme (COVID-19),Test and Trace Payments (COVID-19),500.00,An Individual
16/12/2021,Test and Trace Payments - Standard Scheme (COVID-19),Test and Trace Payments (COVID-19),500.00,An Individual
04/11/2021,Test and Trace Payments - Standard Scheme (COVID-19),Test and Trace Payments (COVID-19),500.00,An Individual
09/12/2021,Test and Trace Payments - Local Discretionary Scheme (COVID-19),Test and Trace Payments (COVID-19),500.00,An Individual
28/10/2021,Test and Trace Payments - Standard Scheme (COVID-19),Test and Trace Payments (COVID-19),500.00,An Individual
02/12/2021,Test and Trace Payments - Local Discretionary Scheme (COVID-19),Test and Trace Payments (COVID-19),500.00,An Individual
16/12/2021,Test and Trace Payments - Standard Scheme (COVID-19),Test and Trace Payments (COVID-19),500.00,An Individual
18/11/2021,Test and Trace Payments - Standard Scheme (COVID-19),Test and Trace Payments (COVID-19),500.00,An Individual
11/11/2021,Test and Trace Payments - Standard Scheme (COVID-19),Test and Trace Payments (COVID-19),500.00,An Individual
22/12/2021,Test and Trace Payments - Standard Scheme (COVID-19),Test and Trace Payments (COVID-19),500.00,An Individual
25/11/2021,Test and Trace Payments - Local Discretionary Scheme (COVID-19),Test and Trace Payments (COVID-19),500.00,An Individual
02/12/2021,Test and Trace Payments - Local Discretionary Scheme (COVID-19),Test and Trace Payments (COVID-19),500.00,An Individual
09/12/2021,Test and Trace Payments - Local Discretionary Scheme (COVID-19),Test and Trace Payments (COVID-19),500.00,An Individual
09/12/2021,Test and Trace Payments - Local Discretionary Scheme (COVID-19),Test and Trace Payments (COVID-19),500.00,An Individual
21/10/2021,Test and Trace Payments - Standard Scheme (COVID-19),Test and Trace Payments (COVID-19),500.00,An Individual
16/12/2021,Test and Trace Payments - Standard Scheme (COVID-19),Test and Trace Payments (COVID-19),500.00,An Individual
21/10/2021,Test and Trace Payments - Standard Scheme (COVID-19),Test and Trace Payments (COVID-19),500.00,An Individual
07/10/2021,Test and Trace Payments - Standard Scheme (COVID-19),Test and Trace Payments (COVID-19),500.00,An Individual
09/12/2021,Test and Trace Payments - Local Discretionary Scheme (COVID-19),Test and Trace Payments (COVID-19),500.00,An Individual
07/10/2021,Test and Trace Payments - Standard Scheme (COVID-19),Test and Trace Payments (COVID-19),500.00,An Individual
11/11/2021,Test and Trace Payments - Standard Scheme (COVID-19),Test and Trace Payments (COVID-19),500.00,An Individual
18/11/2021,Test and Trace Payments - Standard Scheme (COVID-19),Test and Trace Payments (COVID-19),500.00,An Individual
02/12/2021,Test and Trace Payments - Standard Scheme (COVID-19),Test and Trace Payments (COVID-19),500.00,An Individual
22/12/2021,Test and Trace Payments - Local Discretionary Scheme (COVID-19),Test and Trace Payments (COVID-19),500.00,An Individual
09/12/2021,Test and Trace Payments - Local Discretionary Scheme (COVID-19),Test and Trace Payments (COVID-19),500.00,An Individual
18/11/2021,Test and Trace Payments - Standard Scheme (COVID-19),Test and Trace Payments (COVID-19),500.00,An Individual
16/12/2021,Test and Trace Payments - Standard Scheme (COVID-19),Test and Trace Payments (COVID-19),500.00,An Individual
25/11/2021,Test and Trace Payments - Local Discretionary Scheme (COVID-19),Test and Trace Payments (COVID-19),500.00,An Individual
09/12/2021,Test and Trace Payments - Standard Scheme (COVID-19),Test and Trace Payments (COVID-19),500.00,An Individual
21/10/2021,Test and Trace Payments - Standard Scheme (COVID-19),Test and Trace Payments (COVID-19),500.00,An Individual
16/12/2021,Test and Trace Payments - Local Discretionary Scheme (COVID-19),Test and Trace Payments (COVID-19),500.00,An Individual
16/12/2021,Test and Trace Payments - Standard Scheme (COVID-19),Test and Trace Payments (COVID-19),500.00,An Individual
04/11/2021,Test and Trace Payments - Standard Scheme (COVID-19),Test and Trace Payments (COVID-19),500.00,An Individual
22/12/2021,Test and Trace Payments - Standard Scheme (COVID-19),Test and Trace Payments (COVID-19),500.00,An Individual
25/11/2021,Test and Trace Payments - Local Discretionary Scheme (COVID-19),Test and Trace Payments (COVID-19),500.00,An Individual
02/12/2021,Test and Trace Payments - Local Discretionary Scheme (COVID-19),Test and Trace Payments (COVID-19),500.00,An Individual
25/11/2021,Test and Trace Payments - Local Discretionary Scheme (COVID-19),Test and Trace Payments (COVID-19),500.00,An Individual
16/12/2021,Test and Trace Payments - Standard Scheme (COVID-19),Test and Trace Payments (COVID-19),500.00,An Individual
05/11/2021,Flood Compensation Payments,Flood Compensation Payments,"2,195.00",An Individual
02/12/2021,Test and Trace Payments - Standard Scheme (COVID-19),Test and Trace Payments (COVID-19),500.00,An Individual
14/10/2021,Test and Trace Payments - Standard Scheme (COVID-19),Test and Trace Payments (COVID-19),500.00,An Individual
02/12/2021,Test and Trace Payments - Local Discretionary Scheme (COVID-19),Test and Trace Payments (COVID-19),500.00,An Individual
11/11/2021,Test and Trace Payments - Standard Scheme (COVID-19),Test and Trace Payments (COVID-19),500.00,An Individual
16/12/2021,Test and Trace Payments - Local Discretionary Scheme (COVID-19),Test and Trace Payments (COVID-19),500.00,An Individual
04/11/2021,Test and Trace Payments - Standard Scheme (COVID-19),Test and Trace Payments (COVID-19),500.00,An Individual
25/11/2021,Test and Trace Payments - Standard Scheme (COVID-19),Test and Trace Payments (COVID-19),500.00,An Individual
21/10/2021,Test and Trace Payments - Standard Scheme (COVID-19),Test and Trace Payments (COVID-19),500.00,An Individual
14/10/2021,Test and Trace Payments - Standard Scheme (COVID-19),Test and Trace Payments (COVID-19),500.00,An Individual
21/10/2021,Test and Trace Payments - Standard Scheme (COVID-19),Test and Trace Payments (COVID-19),500.00,An Individual
09/12/2021,Test and Trace Payments - Local Discretionary Scheme (COVID-19),Test and Trace Payments (COVID-19),500.00,An Individual
25/11/2021,Test and Trace Payments - Local Discretionary Scheme (COVID-19),Test and Trace Payments (COVID-19),500.00,An Individual
22/12/2021,Test and Trace Payments - Local Discretionary Scheme (COVID-19),Test and Trace Payments (COVID-19),500.00,An Individual
22/12/2021,Test and Trace Payments - Standard Scheme (COVID-19),Test and Trace Payments (COVID-19),500.00,An Individual
07/10/2021,Test and Trace Payments - Standard Scheme (COVID-19),Test and Trace Payments (COVID-19),500.00,An Individual
21/10/2021,Test and Trace Payments - Standard Scheme (COVID-19),Test and Trace Payments (COVID-19),500.00,An Individual
09/12/2021,Test and Trace Payments - Local Discretionary Scheme (COVID-19),Test and Trace Payments (COVID-19),500.00,An Individual
28/10/2021,Test and Trace Payments - Standard Scheme (COVID-19),Test and Trace Payments (COVID-19),500.00,An Individual
25/11/2021,Test and Trace Payments - Local Discretionary Scheme (COVID-19),Test and Trace Payments (COVID-19),500.00,An Individual
16/12/2021,Test and Trace Payments - Standard Scheme (COVID-19),Test and Trace Payments (COVID-19),500.00,An Individual
21/10/2021,Test and Trace Payments - Standard Scheme (COVID-19),Test and Trace Payments (COVID-19),500.00,An Individual
16/12/2021,Test and Trace Payments - Standard Scheme (COVID-19),Test and Trace Payments (COVID-19),500.00,An Individual
28/10/2021,Test and Trace Payments - Standard Scheme (COVID-19),Test and Trace Payments (COVID-19),500.00,An Individual
22/12/2021,Test and Trace Payments - Local Discretionary Scheme (COVID-19),Test and Trace Payments (COVID-19),500.00,An Individual
28/10/2021,Test and Trace Payments - Standard Scheme (COVID-19),Test and Trace Payments (COVID-19),500.00,An Individual
07/10/2021,Test and Trace Payments - Standard Scheme (COVID-19),Test and Trace Payments (COVID-19),500.00,An Individual
18/11/2021,Test and Trace Payments - Standard Scheme (COVID-19),Test and Trace Payments (COVID-19),500.00,An Individual
18/11/2021,Test and Trace Payments - Standard Scheme (COVID-19),Test and Trace Payments (COVID-19),500.00,An Individual
21/10/2021,Test and Trace Payments - Standard Scheme (COVID-19),Test and Trace Payments (COVID-19),500.00,An Individual
07/10/2021,Test and Trace Payments - Standard Scheme (COVID-19),Test and Trace Payments (COVID-19),500.00,An Individual
11/11/2021,Test and Trace Payments - Standard Scheme (COVID-19),Test and Trace Payments (COVID-19),500.00,An Individual
14/10/2021,Test and Trace Payments - Standard Scheme (COVID-19),Test and Trace Payments (COVID-19),500.00,An Individual
25/11/2021,Test and Trace Payments - Local Discretionary Scheme (COVID-19),Test and Trace Payments (COVID-19),500.00,An Individual
08/12/2021,Other Expenses,Brewhouse Community Ticket Sales,"3,421.00",An Individual
17/10/2021,Professional Theatre Fees,Brewhouse Arts Centre,745.50,An Individual
26/10/2021,Other Expenses,Brewhouse Community Ticket Sales,"4,886.00",An Individual
24/09/2021,Advance of Salary,Advance of Salary,568.79,An Individual
09/12/2021,Advertising,Cultural Services Marketing,750.00,An Individual
13/09/2021,Public/Civic Function Expenses,Twinning and Civic Ceremonials,"1,950.00",An Individual
15/11/2021,Other Expenses,Brewhouse Community Ticket Sales,"3,460.00",An Individual
16/12/2021,Other Homeless Prevention,Housing Options,"1,000.00",An Individual
18/11/2021,Legal Costs,Legal Services,"1,223.50",Anthony Collins Solicitors LLP
07/12/2021,Training Expenses,Corporate Training,675.00,Aquila Training Services Ltd
02/12/2021,General Grants,Enterprise,"3,500.00",Ashes Memorial Jewellery
31/08/2021,Systems Development,Development Control,"2,125.00",Astun Technology
30/10/2021,Systems Development,Development Control,"1,700.00",Astun Technology
04/10/2021,General Grants,Enterprise,"2,500.00",Baggy Boys Ltd
26/10/2021,Wasps Expenditure,Councillors Community Fund,"1,000.00",Barton under Needwood Hockey Club
08/12/2021,Professional Support,Housing Standards,"5,288.70",Beat the Cold
12/11/2021,Third Party Payments,Recycling,"4,786.46",Biffa Waste Services Limited
29/10/2021,Third Party Payments,Recycling,"4,574.26",Biffa Waste Services Limited
22/10/2021,Third Party Payments,Recycling,"6,399.38",Biffa Waste Services Limited
05/11/2021,Third Party Payments,Recycling,"4,994.54",Biffa Waste Services Limited
15/10/2021,Third Party Payments,Recycling,"49,523.85",Biffa Waste Services Limited
24/09/2021,Third Party Payments,Recycling,"7,382.77",Biffa Waste Services Limited
19/11/2021,Third Party Payments,Recycling,"5,360.15",Biffa Waste Services Limited
15/10/2021,Third Party Payments,Recycling,"1,072.45",Biffa Waste Services Limited
15/10/2021,Third Party Payments,Recycling,"5,907.98",Biffa Waste Services Limited
11/11/2021,Third Party Payments,Recycling,"40,227.00",Biffa Waste Services Limited
10/09/2021,Third Party Payments,Recycling,"13,111.47",Biffa Waste Services Limited
26/11/2021,Third Party Payments,Recycling,"4,725.32",Biffa Waste Services Limited
08/10/2021,Third Party Payments,Recycling,"5,645.23",Biffa Waste Services Limited
17/09/2021,Third Party Payments,Recycling,"6,870.79",Biffa Waste Services Limited
17/09/2021,Third Party Payments,Recycling,"39,846.10",Biffa Waste Services Limited
01/10/2021,Third Party Payments,Recycling,"6,512.82",Biffa Waste Services Limited
29/10/2021,Professional Fees,Enterprise,"8,432.50",Binnies UK Ltd
10/12/2021,Professional Fees,Enterprise,"7,657.99",Binnies UK Ltd
10/12/2021,Professional Fees,Enterprise,"5,918.47",Binnies UK Ltd
22/09/2021,Professional Fees,Enterprise,"10,387.85",Binnies UK Ltd
03/11/2021,Grounds Maintenance,Open Spaces,"1,345.00",Bloomin Gardens and Landscapes Ltd
24/10/2021,Temporary Staff Costs,Burton Town Hall Civic Building,549.00,Boss Security
24/10/2021,Temporary Staff Costs,Burton Town Hall Civic Building,"1,044.00",Boss Security
03/11/2021,Contracted Grounds Maintenance,Horticultural Resource Centre,"13,835.34",Boverton Nurseries Ltd
11/11/2021,"Seeds, Plants and Shrubs",Horticultural Resource Centre,"1,656.24",Boverton Nurseries Ltd
03/10/2021,Consultants,Development Control,"1,089.45",Bramley Tree Consultancy Ltd
29/10/2021,Consultants,Development Control,975.00,Bramley Tree Consultancy Ltd
02/12/2021,Consultants,Development Control,896.70,Bramley Tree Consultancy Ltd
14/08/2021,DFG Contractor Payments,Housing Standards,"1,183.65",Broad Oak Properties Limited
14/11/2021,DFG Contractor Payments,Housing Standards,"8,027.50",Broad Oak Properties Limited
25/08/2021,DFG Contractor Payments,Housing Standards,"10,935.00",Broad Oak Properties Limited
14/08/2021,DFG Contractor Payments,Housing Standards,"8,027.50",Broad Oak Properties Limited
14/08/2021,DFG Contractor Payments,Housing Standards,"12,800.00",Broad Oak Properties Limited
22/11/2021,DFG Contractor Payments,Housing Standards,"2,560.00",Broad Oak Properties Limited
31/08/2021,DFG Contractor Payments,Housing Standards,"1,780.00",Broad Oak Properties Limited
02/10/2021,DFG Contractor Payments,Housing Standards,"5,342.50",Broad Oak Properties Limited
31/08/2021,DFG Contractor Payments,Housing Standards,"4,764.00",Broad Oak Properties Limited
25/08/2021,DFG Contractor Payments,Housing Standards,"10,935.00",Broad Oak Properties Limited
14/11/2021,DFG Contractor Payments,Housing Standards,"12,800.00",Broad Oak Properties Limited
15/09/2021,DFG Contractor Payments,Housing Standards,"6,800.00",Broad Oak Properties Limited
22/11/2021,DFG Contractor Payments,Housing Standards,"12,800.00",Broad Oak Properties Limited
02/10/2021,DFG Contractor Payments,Housing Standards,"2,416.00",Broad Oak Properties Limited
14/11/2021,DFG Contractor Payments,Housing Standards,"2,560.00",Broad Oak Properties Limited
02/10/2021,DFG Contractor Payments,Housing Standards,"12,080.00",Broad Oak Properties Limited
11/09/2021,DFG Contractor Payments,Housing Standards,"1,590.48",Broad Oak Properties Limited
22/11/2021,DFG Contractor Payments,Housing Standards,"8,027.50",Broad Oak Properties Limited
09/11/2021,Other Equipment,Open Spaces,"1,197.00",Broxap Limited
27/10/2021,Other Equipment,Open Spaces,"1,091.00",Broxap Limited
25/10/2021,Other Equipment,Open Spaces,562.50,Broxap Limited
29/10/2021,Acquisition of Vehicles,Millers Lane Depot,"290,596.00",Bunce (Ashbury) Ltd
19/10/2021,Acquisition of Vehicles,Millers Lane Depot,"2,040.00",Bunce (Ashbury) Ltd
01/12/2021,Other Expenses,Brewhouse Community Ticket Sales,616.00,Burton Competitive Vocal Festival
25/09/2021,Grounds Maintenance,Open Spaces,"1,133.57",Burton Conservation Volunteers
02/12/2021,Wasps Expenditure,Councillors Community Fund,500.00,Burton Hope
16/11/2021,Project Grant Payments,Social Regeneration,"7,520.00",Burton on Trent Rotary Club General
01/12/2021,Commuted Sum Expenditure,Housing Options,"6,666.75",Burton upon Trent & District YMCA
01/12/2021,General Grants,Housing Options,"10,222.23",Burton upon Trent & District YMCA
01/12/2021,General Grants,Housing Options,"14,333.34",Burton upon Trent & District YMCA
30/09/2021,Hire of Equipment,Central Reprographics,643.79,Canon UK Ltd
09/11/2021,Hire of Equipment,Central Reprographics,517.96,Canon UK Ltd
02/11/2021,Contactless Card Processing Costs,Car Parks - General,798.96,Capita Business Services Ltd
06/10/2021,Contactless Card Processing Costs,Car Parks - General,704.00,Capita Business Services Ltd
25/10/2021,Software Licenses & Contracts,Housing Benefits Subsidies,"2,910.72",Capita Business Services Ltd
09/12/2021,Temporary Staff Costs,Development Control,"1,125.00",Carrington West Ltd
11/11/2021,Temporary Staff Costs,Development Control,"1,125.00",Carrington West Ltd
13/10/2021,Temporary Staff Costs,Development Control,"1,125.00",Carrington West Ltd
29/09/2021,Temporary Staff Costs,Development Control,"1,125.00",Carrington West Ltd
21/10/2021,Temporary Staff Costs,Development Control,"1,125.00",Carrington West Ltd
07/10/2021,Temporary Staff Costs,Development Control,"1,125.00",Carrington West Ltd
02/12/2021,Temporary Staff Costs,Development Control,"1,125.00",Carrington West Ltd
25/11/2021,Temporary Staff Costs,Development Control,"1,125.00",Carrington West Ltd
18/11/2021,Temporary Staff Costs,Development Control,"1,125.00",Carrington West Ltd
04/11/2021,Temporary Staff Costs,Development Control,"1,125.00",Carrington West Ltd
04/11/2021,Temporary Staff Costs,Development Control,"1,125.00",Carrington West Ltd
10/11/2021,DFG Contractor Payments,Housing Standards,"5,129.31",CCSS Fire & Security Ltd
16/11/2021,Direct Purchases,DSO Stores Account,"1,399.10",Central Fuel Oils
14/10/2021,Direct Purchases,DSO Stores Account,"25,509.00",Central Fuel Oils
16/11/2021,Direct Purchases,DSO Stores Account,"35,086.17",Central Fuel Oils
10/11/2021,Abandoned Vehicles,Enforcement Section,935.00,CGM Recovery
31/08/2021,Abandoned Vehicles,Enforcement Section,725.00,CGM Recovery
10/11/2021,Abandoned Vehicles,Enforcement Section,620.00,CGM Recovery
01/10/2021,Christmas Decorations,Grants for Tourism,741.60,Christmas Plus
16/09/2021,Christmas Decorations,Grants for Tourism,"15,871.00",Christmas Plus
09/12/2021,Professional Fees,Environmental Health,"1,613.00",CIEH
11/11/2021,Training Expenses,Corporate Training,"1,750.00",CIPFA
14/10/2021,Printing and Stationery,Council Elections,"4,223.33",Civica Election Services Limited
30/10/2021,Printing and Stationery,Electoral Services,"4,731.87",Civica Election Services Limited
22/10/2021,Cleaning Contracts,Clear Channel - Self Billing VAT,"39,841.70",Clear Channel UK Ltd
22/10/2021,Cleaning Contracts,Clear Channel - Self Billing VAT,"30,870.00",Clear Channel UK Ltd
22/10/2021,Cleaning Contracts,Clear Channel - Self Billing VAT,"30,870.00",Clear Channel UK Ltd
28/10/2021,Cleaning Contracts,Clear Channel - Self Billing VAT,"40,219.20",Clear Channel UK Ltd
22/10/2021,Cleaning Contracts,Clear Channel - Self Billing VAT,"34,280.55",Clear Channel UK Ltd
20/09/2021,Software Licenses & Contracts,Cemeteries,"2,050.00",Clear Skies Software
04/11/2021,"Clothing, Uniforms and Laundry",Facilities Management,695.08,Clothing 4 Work Ltd
14/10/2021,Safer Public Spaces (Covid-19),Re-Opening the High Streets (COVID-19),900.00,Comedy Club 4 Kids
20/10/2021,Temporary Staff Costs,Enforcement Section,"1,620.60",Comensura Ltd
24/10/2021,Temporary Staff Costs,Enforcement Section,900.52,Comensura Ltd
03/10/2021,Temporary Staff Costs,Enforcement Section,876.00,Comensura Ltd
31/08/2021,Temporary Staff Costs,Enforcement Section,810.30,Comensura Ltd
19/09/2021,Temporary Staff Costs,Enforcement Section,"3,315.00",Comensura Ltd
03/11/2021,Temporary Staff Costs,Enforcement Section,"1,009.73",Comensura Ltd
29/09/2021,Temporary Staff Costs,Enforcement Section,810.30,Comensura Ltd
21/11/2021,Temporary Staff Costs,Enforcement Section,"1,928.57",Comensura Ltd
28/11/2021,Temporary Staff Costs,Public Conveniences,504.87,Comensura Ltd
03/11/2021,Temporary Staff Costs,Public Conveniences,708.09,Comensura Ltd
14/11/2021,Temporary Staff Costs,Recycling,"3,796.61",Comensura Ltd
29/09/2021,Temporary Staff Costs,Recycling,"2,329.54",Comensura Ltd
20/10/2021,Temporary Staff Costs,Recycling,"2,529.79",Comensura Ltd
28/11/2021,Temporary Staff Costs,Recycling,"3,184.53",Comensura Ltd
03/11/2021,Temporary Staff Costs,Recycling,"2,082.19",Comensura Ltd
05/12/2021,Temporary Staff Costs,Recycling,"2,702.30",Comensura Ltd
19/09/2021,Temporary Staff Costs,Recycling,"2,830.86",Comensura Ltd
12/12/2021,Temporary Staff Costs,Recycling,"2,649.97",Comensura Ltd
21/11/2021,Temporary Staff Costs,Recycling,"3,116.95",Comensura Ltd
07/11/2021,Temporary Staff Costs,Recycling,"4,107.80",Comensura Ltd
03/10/2021,Temporary Staff Costs,Recycling,"2,043.95",Comensura Ltd
24/10/2021,Temporary Staff Costs,Recycling,"2,597.37",Comensura Ltd
10/10/2021,Temporary Staff Costs,Recycling,"1,814.96",Comensura Ltd
20/10/2021,Temporary Staff Costs,Refuse Collection,"5,811.52",Comensura Ltd
28/11/2021,Temporary Staff Costs,Refuse Collection,"3,434.84",Comensura Ltd
03/11/2021,Temporary Staff Costs,Refuse Collection,"5,301.31",Comensura Ltd
03/10/2021,Temporary Staff Costs,Refuse Collection,"4,943.37",Comensura Ltd
10/10/2021,Temporary Staff Costs,Refuse Collection,"5,916.97",Comensura Ltd
19/09/2021,Temporary Staff Costs,Refuse Collection,"4,028.38",Comensura Ltd
14/11/2021,Temporary Staff Costs,Refuse Collection,"3,467.41",Comensura Ltd
12/12/2021,Temporary Staff Costs,Refuse Collection,"2,645.19",Comensura Ltd
21/11/2021,Temporary Staff Costs,Refuse Collection,"3,225.40",Comensura Ltd
24/10/2021,Temporary Staff Costs,Refuse Collection,"4,527.27",Comensura Ltd
29/09/2021,Temporary Staff Costs,Refuse Collection,"4,197.63",Comensura Ltd
07/11/2021,Temporary Staff Costs,Refuse Collection,"3,111.45",Comensura Ltd
05/12/2021,Temporary Staff Costs,Refuse Collection,"3,458.34",Comensura Ltd
28/11/2021,Temporary Staff Costs,Street Cleaning,"1,729.00",Comensura Ltd
07/11/2021,Temporary Staff Costs,Street Cleaning,955.30,Comensura Ltd
03/11/2021,Temporary Staff Costs,Street Cleaning,"1,337.42",Comensura Ltd
24/10/2021,Temporary Staff Costs,Street Cleaning,"1,337.42",Comensura Ltd
12/12/2021,Temporary Staff Costs,Street Cleaning,"1,241.89",Comensura Ltd
05/12/2021,Temporary Staff Costs,Street Cleaning,"1,432.95",Comensura Ltd
20/10/2021,Temporary Staff Costs,Street Cleaning,950.14,Comensura Ltd
29/09/2021,Temporary Staff Costs,Street Cleaning,"1,146.36",Comensura Ltd
10/10/2021,Temporary Staff Costs,Street Cleaning,640.49,Comensura Ltd
21/11/2021,Temporary Staff Costs,Street Cleaning,"1,724.56",Comensura Ltd
14/11/2021,Temporary Staff Costs,Street Cleaning,"1,815.14",Comensura Ltd
19/09/2021,Temporary Staff Costs,Street Cleaning,"1,023.54",Comensura Ltd
27/09/2021,Vehicle Maintenance Costs,Street Cleaning,872.55,Country Services Ltd
05/10/2021,Provision of Wheelie Bins,Recycling,"7,257.90",Craemer UK Limited
05/10/2021,Provision of Wheelie Bins,Recycling,"6,778.20",Craemer UK Limited
08/10/2021,Provision of Wheelie Bins,Recycling,"14,246.40",Craemer UK Limited
19/10/2021,Provision of Wheelie Bins,Refuse Collection,"1,900.00",Craemer UK Limited
10/12/2021,General Grants,Enterprise,520.00,D S K Engineering Services
10/12/2021,General Grants,Enterprise,750.00,D S K Engineering Services
09/10/2021,Grounds Maintenance,Open Spaces,"1,573.00",D S K Engineering Services
17/11/2021,Grounds Maintenance,Open Spaces,"4,285.00",D S K Engineering Services
17/11/2021,Grounds Maintenance,Open Spaces,"1,141.00",D S K Engineering Services
09/10/2021,Grounds Maintenance,Open Spaces,"1,650.00",D S K Engineering Services
09/10/2021,Grounds Maintenance,Open Spaces,800.00,D S K Engineering Services
17/11/2021,Grounds Maintenance,Open Spaces,"1,519.00",D S K Engineering Services
09/10/2021,Grounds Maintenance,Open Spaces,"5,265.00",D S K Engineering Services
09/10/2021,Grounds Maintenance,Open Spaces,"1,705.00",D S K Engineering Services
09/10/2021,Grounds Maintenance,Open Spaces,"2,700.00",D S K Engineering Services
09/10/2021,Grounds Maintenance,Open Spaces,795.00,D S K Engineering Services
09/10/2021,Play Equipment,Open Spaces,"1,034.00",D S K Engineering Services
17/11/2021,Play Equipment,Open Spaces,"1,175.00",D S K Engineering Services
17/11/2021,Play Equipment,Open Spaces,"5,122.00",D S K Engineering Services
09/10/2021,Play Equipment,Open Spaces,"3,961.00",D S K Engineering Services
26/09/2021,Repairs & Maintenance to Buildings,Leisure Management,"2,550.00",D.P.S. Roofing & Building Services
31/08/2021,Printing and Stationery,Electoral Services,544.28,Democracy Counts Ltd
31/07/2021,Printing and Stationery,Electoral Services,"2,123.23",Democracy Counts Ltd
14/10/2021,Acquisition of Vehicles,Millers Lane Depot,"172,915.00",Dennis Eagle Ltd
14/10/2021,Acquisition of Vehicles,Millers Lane Depot,"172,915.00",Dennis Eagle Ltd
06/10/2021,Acquisition of Vehicles,Millers Lane Depot,"208,220.00",Dennis Eagle Ltd
06/10/2021,Acquisition of Vehicles,Millers Lane Depot,"208,220.00",Dennis Eagle Ltd
06/10/2021,Acquisition of Vehicles,Millers Lane Depot,"208,220.00",Dennis Eagle Ltd
14/10/2021,Acquisition of Vehicles,Millers Lane Depot,"172,915.00",Dennis Eagle Ltd
06/10/2021,Acquisition of Vehicles,Millers Lane Depot,"208,220.00",Dennis Eagle Ltd
14/10/2021,Acquisition of Vehicles,Millers Lane Depot,"172,915.00",Dennis Eagle Ltd
06/10/2021,Acquisition of Vehicles,Millers Lane Depot,"208,220.00",Dennis Eagle Ltd
14/10/2021,Acquisition of Vehicles,Millers Lane Depot,"172,915.00",Dennis Eagle Ltd
06/10/2021,Acquisition of Vehicles,Millers Lane Depot,"208,220.00",Dennis Eagle Ltd
14/10/2021,Acquisition of Vehicles,Millers Lane Depot,"172,915.00",Dennis Eagle Ltd
14/10/2021,Acquisition of Vehicles,Millers Lane Depot,"172,915.00",Dennis Eagle Ltd
21/10/2021,Acquisition of Vehicles,Millers Lane Depot,"5,483.00",Dennis Eagle Ltd
06/10/2021,Acquisition of Vehicles,Millers Lane Depot,"172,915.00",Dennis Eagle Ltd
14/10/2021,Acquisition of Vehicles,Millers Lane Depot,"172,915.00",Dennis Eagle Ltd
26/11/2021,Printing and Stationery,Licensing,"1,214.93",Digital ID Limited
31/07/2021,DFG Contractor Payments,Housing Standards,"1,732.20",Direct Healthcare Group
28/08/2021,DFG Contractor Payments,Housing Standards,"1,721.67",Direct Healthcare Group
09/11/2021,Repairs & Maintenance to Buildings,Facilities Management,750.00,Door Maintenance Specialists (S-o-T) Ltd.
09/11/2021,Repairs & Maintenance to Buildings,Facilities Management,"1,200.00",Door Maintenance Specialists (S-o-T) Ltd.
09/11/2021,Repairs & Maintenance to Buildings,Facilities Management,680.00,Door Maintenance Specialists (S-o-T) Ltd.
09/11/2021,Repairs & Maintenance to Buildings,Facilities Management,"3,000.00",Door Maintenance Specialists (S-o-T) Ltd.
11/10/2021,Grounds Maintenance,Coopers Square Car Park - Surface,"14,959.33",E.on Energy Solutions Ltd
10/11/2021,Electricity,Millers Lane Depot,"1,061.69",E.ON Next Energy Limited
06/12/2021,Electricity,Millers Lane Depot,831.56,E.ON Next Energy Limited
07/10/2021,Electricity,Open Spaces,642.62,E.ON Next Energy Limited
02/10/2021,Car Parks Maintenance,Open Spaces,"13,448.92",E.ON UK PLC
16/09/2021,Recycling Containers,Recycling,"3,507.20",Egbert H Taylor & Co Ltd
16/09/2021,Supply/Repair Trade Refuse Bins,Refuse Collection,"2,969.30",Egbert H Taylor & Co Ltd
16/11/2021,Consultants,Environmental Health,"2,231.40",Enviroconsult Limited
06/10/2021,Consultants,Environmental Health,"4,070.20",Enviroconsult Limited
25/10/2021,Professional Theatre Fees,Brewhouse Arts Centre,"1,000.00",Fancourt Music
27/07/2021,Refreshments,Burton Retail Market,720.05,First Choice Wholesale Foods Ltd
25/10/2021,Consultants,Income Management,"3,000.00",Focus on Banking Ltd
26/09/2021,Safer Public Spaces (Covid-19),Re-Opening the High Streets (COVID-19),915.00,Fool�s Paradise Ltd
25/09/2021,Safer Public Spaces (Covid-19),Re-Opening the High Streets (COVID-19),905.00,Fool�s Paradise Ltd
08/10/2021,Repairs & Maintenance to Buildings,Brewhouse Arts Centre,"3,500.00",G&M Safety Netting Ltd
22/10/2021,Repairs & Maintenance to Buildings,Brewhouse Arts Centre,"4,000.00",G&M Safety Netting Ltd
30/11/2021,Repairs & Maintenance to Buildings,Brewhouse Arts Centre,"17,662.50",G&M Safety Netting Ltd
06/10/2021,Temporary Staff Costs,Development Control,"3,937.50",G2 Recruitment Solutions
10/11/2021,Temporary Staff Costs,Business Rate Collection,876.00,G2 Recruitment Solutions
15/09/2021,Temporary Staff Costs,Business Rate Collection,939.60,G2 Recruitment Solutions
29/09/2021,Temporary Staff Costs,Business Rate Collection,"1,110.30",G2 Recruitment Solutions
22/09/2021,Temporary Staff Costs,Business Rate Collection,"1,110.30",G2 Recruitment Solutions
03/11/2021,Temporary Staff Costs,Business Rate Collection,"2,820.30",G2 Recruitment Solutions
11/10/2021,Play Equipment,Open Spaces,724.00,GB Sport & Leisure UK Ltd
14/11/2021,Consultants,Development Control,"5,100.00",GHM Planning Ltd
09/10/2021,Consultants,Development Control,"5,547.00",GHM Planning Ltd
09/10/2021,Consultants,Development Control,"5,537.50",GHM Planning Ltd
01/10/2021,Vehicle Maintenance Costs,Recycling,"4,286.33",Go Plant Limited
01/10/2021,Vehicle Maintenance Costs,Recycling,"3,438.33",Go Plant Limited
22/10/2021,Vehicle Maintenance Costs,Recycling,692.76,Go Plant Limited
01/10/2021,Vehicle Maintenance Costs,Recycling,"4,440.08",Go Plant Limited
01/10/2021,Vehicle Maintenance Costs,Recycling,"4,286.33",Go Plant Limited
22/10/2021,Vehicle Maintenance Costs,Recycling,867.21,Go Plant Limited
22/10/2021,Vehicle Maintenance Costs,Recycling,567.34,Go Plant Limited
01/10/2021,Vehicle Maintenance Costs,Recycling,"4,286.33",Go Plant Limited
22/10/2021,Vehicle Maintenance Costs,Recycling,838.40,Go Plant Limited
22/10/2021,Vehicle Maintenance Costs,Recycling,"1,234.21",Go Plant Limited
01/10/2021,Vehicle Maintenance Costs,Recycling,"3,438.33",Go Plant Limited
22/10/2021,Vehicle Maintenance Costs,Recycling,718.16,Go Plant Limited
01/10/2021,Vehicle Maintenance Costs,Recycling,"4,286.33",Go Plant Limited
01/10/2021,Vehicle Maintenance Costs,Recycling,"4,286.33",Go Plant Limited
22/10/2021,Vehicle Maintenance Costs,Recycling,835.88,Go Plant Limited
01/10/2021,Vehicle Maintenance Costs,Recycling,"3,597.50",Go Plant Limited
22/10/2021,Vehicle Maintenance Costs,Recycling,710.96,Go Plant Limited
01/10/2021,Vehicle Maintenance Costs,Recycling,"3,438.33",Go Plant Limited
22/10/2021,Vehicle Hire,Recycling,"4,424.64",Go Plant Limited
22/10/2021,Vehicle Hire,Recycling,"4,243.14",Go Plant Limited
17/09/2021,Vehicle Hire,Recycling,"2,411.53",Go Plant Limited
01/10/2021,Vehicle Maintenance Costs,Refuse Collection,"2,725.58",Go Plant Limited
30/11/2021,Vehicle Maintenance Costs,Refuse Collection,"2,336.16",Go Plant Limited
01/10/2021,Vehicle Maintenance Costs,Refuse Collection,"1,874.58",Go Plant Limited
01/10/2021,Vehicle Maintenance Costs,Refuse Collection,"3,438.33",Go Plant Limited
01/10/2021,Vehicle Maintenance Costs,Refuse Collection,"3,438.33",Go Plant Limited
22/10/2021,Vehicle Maintenance Costs,Refuse Collection,656.58,Go Plant Limited
01/10/2021,Vehicle Maintenance Costs,Refuse Collection,"3,438.33",Go Plant Limited
01/10/2021,Vehicle Maintenance Costs,Refuse Collection,"3,438.33",Go Plant Limited
30/11/2021,Vehicle Maintenance Costs,Street Cleaning,802.50,Go Plant Limited
30/11/2021,Vehicle Maintenance Costs,Street Cleaning,711.90,Go Plant Limited
01/10/2021,Vehicle Maintenance Costs,Street Cleaning,664.50,Go Plant Limited
30/11/2021,Vehicle Maintenance Costs,Street Cleaning,"2,615.10",Go Plant Limited
17/09/2021,Vehicle Maintenance Costs,Street Cleaning,524.81,Go Plant Limited
01/10/2021,Vehicle Maintenance Costs,Street Cleaning,"1,874.58",Go Plant Limited
01/10/2021,Vehicle Maintenance Costs,Street Cleaning,"1,874.58",Go Plant Limited
01/10/2021,Vehicle Maintenance Costs,Street Cleaning,749.16,Go Plant Limited
01/10/2021,Vehicle Maintenance Costs,Street Cleaning,"1,874.58",Go Plant Limited
30/11/2021,Vehicle Maintenance Costs,Street Cleaning,711.90,Go Plant Limited
01/10/2021,Vehicle Maintenance Costs,Street Cleaning,664.50,Go Plant Limited
30/11/2021,Vehicle Maintenance Costs,Street Cleaning,"2,527.93",Go Plant Limited
01/10/2021,Vehicle Maintenance Costs,Street Cleaning,664.50,Go Plant Limited
01/10/2021,Vehicle Maintenance Costs,Street Cleaning,749.16,Go Plant Limited
30/11/2021,Vehicle Maintenance Costs,Street Cleaning,802.50,Go Plant Limited
01/10/2021,Vehicle Maintenance Costs,Street Cleaning,"2,441.00",Go Plant Limited
30/11/2021,Vehicle Maintenance Costs,Street Cleaning,711.90,Go Plant Limited
01/10/2021,Vehicle Maintenance Costs,Street Cleaning,"2,441.00",Go Plant Limited
22/10/2021,Vehicle Maintenance Costs,Street Cleaning,968.32,Go Plant Limited
22/10/2021,Vehicle Hire,Street Cleaning,"1,320.00",Go Plant Limited
17/09/2021,Vehicle Hire,Street Cleaning,"1,512.50",Go Plant Limited
22/10/2021,Vehicle Hire,Street Cleaning,"1,380.50",Go Plant Limited
01/10/2021,Vehicle Maintenance Costs,Trade Waste Recycling,"3,438.33",Go Plant Limited
28/10/2021,Commuted Sum Expenditure,Housing Options,"5,000.00",Grafton Research Services Ltd
30/11/2021,External Audit Fees,External Audit,"10,153.00",Grant Thornton UK LLP
16/08/2021,Safer Public Spaces (Covid-19),Re-Opening the High Streets (COVID-19),900.00,Half a String
23/11/2021,Professional Theatre Fees,Brewhouse Arts Centre,950.00,Half Moon Young People�s Theatre Ltd
16/09/2021,Contract Payments,Leisure Management,"35,669.06",Halliday Lighting
21/10/2021,DFG Contractor Payments,Housing Standards,"2,170.00",Handicare Accessibility Ltd
02/12/2021,DFG Contractor Payments,Housing Standards,"7,439.67",Handicare Accessibility Ltd
12/11/2021,Office Equipment,Burton Town Hall Civic Building,566.70,Hardy Signs Ltd
24/11/2021,Other Equipment,Open Spaces,595.60,Hardy Signs Ltd
12/10/2021,DFG Contractor Payments,Housing Standards,"8,154.55",Harvey & Clark Ltd
04/11/2021,DFG Contractor Payments,Housing Standards,"4,215.30",Harvey & Clark Ltd
04/11/2021,DFG Contractor Payments,Housing Standards,"10,650.35",Harvey & Clark Ltd
21/09/2021,DFG Contractor Payments,Housing Standards,"5,927.85",Harvey & Clark Ltd
27/09/2021,DFG Contractor Payments,Housing Standards,"6,520.95",Harvey & Clark Ltd
12/10/2021,DFG Contractor Payments,Housing Standards,"3,353.80",Harvey & Clark Ltd
21/09/2021,DFG Contractor Payments,Housing Standards,"5,152.80",Harvey & Clark Ltd
23/08/2021,DFG Contractor Payments,Housing Standards,"14,425.65",Harvey & Clark Ltd
01/11/2021,Medical Examinations,Human Resources,591.50,Healthwork Ltd
01/12/2021,Medical Examinations,Human Resources,591.50,Healthwork Ltd
07/10/2021,Subscriptions,Chief Executive,595.00,Hemming Group Ltd
10/11/2021,Advertising,Cultural Services Marketing,599.44,HFE Signs Ltd
01/12/2021,Advertising,Cultural Services Marketing,566.36,HFE Signs Ltd
12/09/2021,Safer Public Spaces (Covid-19),Re-Opening the High Streets (COVID-19),"2,269.39",Hikapee Ltd
26/10/2021,Repairs & Maintenance to Buildings,Housing Options - Accommodation,"1,270.00",Holloway and Sons
01/11/2021,Contracted Grounds Maintenance,Cemeteries,"7,079.23",Idverde Limited
27/10/2021,Contracted Grounds Maintenance,Cemeteries,522.75,Idverde Limited
01/11/2021,Contracted Grounds Maintenance,Cemeteries,"5,284.09",Idverde Limited
03/12/2021,Contracted Grounds Maintenance,Cemeteries,"10,248.36",Idverde Limited
22/11/2021,Grounds Maintenance,Land Drainage,"2,035.32",Idverde Limited
01/11/2021,Grounds Maintenance,Land Drainage,"2,108.01",Idverde Limited
01/11/2021,Grounds Maintenance,Land Drainage,"2,762.22",Idverde Limited
03/12/2021,Car Parks Maintenance,Open Spaces,"2,422.83",Idverde Limited
01/11/2021,Contracted Grounds Maintenance,Open Spaces,"6,741.15",Idverde Limited
04/11/2021,Contracted Grounds Maintenance,Open Spaces,"10,499.47",Idverde Limited
03/12/2021,Contracted Grounds Maintenance,Open Spaces,"7,750.00",Idverde Limited
27/10/2021,Contracted Grounds Maintenance,Open Spaces,"2,261.49",Idverde Limited
03/12/2021,Contracted Grounds Maintenance,Open Spaces,"14,901.96",Idverde Limited
01/11/2021,Contracted Grounds Maintenance,Open Spaces,"1,134.95",Idverde Limited
01/11/2021,Contracted Grounds Maintenance,Open Spaces,"54,798.09",Idverde Limited
03/12/2021,Contracted Grounds Maintenance,Open Spaces,"8,079.00",Idverde Limited
27/10/2021,Contracted Grounds Maintenance,Open Spaces,"35,202.73",Idverde Limited
03/12/2021,Contracted Grounds Maintenance,Open Spaces,"1,779.76",Idverde Limited
10/07/2021,Grounds Maintenance,Open Spaces,"1,200.00",Independent Memorial Inspection
02/06/2021,Grounds Maintenance,Open Spaces,"1,550.00",Independent Memorial Inspection
21/07/2021,Grounds Maintenance,Open Spaces,"6,750.00",Independent Memorial Inspection
02/06/2021,Grounds Maintenance,Open Spaces,825.00,Independent Memorial Inspection
02/06/2021,Grounds Maintenance,Open Spaces,905.00,Independent Memorial Inspection
10/07/2021,Grounds Maintenance,Open Spaces,"10,659.00",Independent Memorial Inspection
06/10/2021,Consultants,Business Rate Collection,873.75,Inform CPI Ltd
03/11/2021,Consultants,Business Rate Collection,525.00,Inform CPI Ltd
23/06/2021,Consultants,Business Rate Collection,"1,631.25",Inform CPI Ltd
22/09/2021,Consultants,Business Rate Collection,"1,125.00",Inform CPI Ltd
30/08/2021,Consultants,Business Rate Collection,"1,875.00",Inform CPI Ltd
04/08/2021,Consultants,Business Rate Collection,"3,787.50",Inform CPI Ltd
28/07/2021,Consultants,Business Rate Collection,525.00,Inform CPI Ltd
17/07/2021,Consultants,Business Rate Collection,881.25,Inform CPI Ltd
22/07/2021,Consultants,Business Rate Collection,"6,356.25",Inform CPI Ltd
30/06/2021,Consultants,Business Rate Collection,"4,312.50",Inform CPI Ltd
27/10/2021,Consultants,Business Rate Collection,"3,562.50",Inform CPI Ltd
06/10/2021,Other Equipment,Cemeteries,678.52,Insight Direct (UK) Limited
07/12/2021,Other Equipment,Enforcement Section,704.07,Insight Direct (UK) Limited
06/10/2021,Other Equipment,Environmental Health,678.52,Insight Direct (UK) Limited
14/12/2021,Other Equipment,Environmental Health,651.68,Insight Direct (UK) Limited
17/12/2021,Other Equipment,Housing Options,683.79,Insight Direct (UK) Limited
09/12/2021,Other Equipment,Brewhouse Arts Centre,652.31,Insight Direct (UK) Limited
15/11/2021,Grounds Maintenance,Open Spaces,"8,589.54",Insight Direct (UK) Limited
22/09/2021,ICT Departmental Purchases,ICT,"7,699.50",Insight Direct (UK) Limited
22/10/2021,ICT Departmental Purchases,ICT,"2,102.50",Insight Direct (UK) Limited
07/12/2021,Subscriptions,Housing Benefits Admin,"1,200.00",IRRV
21/11/2021,Christmas Decorations,Grants for Tourism,"1,500.00",J & S Security Services
01/12/2021,Rents,Open Spaces,"2,500.00",J T Leavesley Limited
26/11/2021,Contracted Grounds Maintenance,Open Spaces,"1,321.00",James Coles & Sons (Nurseries)
26/11/2021,Contracted Grounds Maintenance,Open Spaces,"1,250.00",James Coles & Sons (Nurseries)
26/11/2021,Contracted Grounds Maintenance,Open Spaces,"2,160.00",James Coles & Sons (Nurseries)
26/11/2021,"Seeds, Plants and Shrubs",Horticultural Resource Centre,575.00,James Coles & Sons (Nurseries)
26/11/2021,"Seeds, Plants and Shrubs",Horticultural Resource Centre,739.40,James Coles & Sons (Nurseries)
29/11/2021,Accommodation Costs - B & B/Hotels,Housing Options - Accommodation,775.00,Johnsons Accomodation Ltd
29/11/2021,Accommodation Costs - B & B/Hotels,Next Steps Accommodation Programme (NSAP),775.00,Johnsons Accomodation Ltd
05/10/2021,Accommodation Costs - B & B/Hotels,Next Steps Accommodation Programme (NSAP),750.00,Johnsons Accomodation Ltd
15/09/2021,Professional Theatre Fees,Brewhouse Arts Centre,"2,000.00",Just The Tonic Productions Ltd
28/10/2021,Direct Purchases,Millers Lane Depot,916.10,Key Tracker
18/10/2021,Legal Costs,Planning Policy,"1,200.00",Kings Chambers
16/11/2021,Legal Costs,Licensing,750.00,Kings Chambers
23/11/2021,Rents,Coopers Square Car Park - Surface,"3,000.00",Knight Frank LLP
22/10/2021,Training Expenses,Corporate Training,"3,333.60",Leeds Beckett University
10/06/2021,Arts Programme Expenses,Arts Development,837.00,Leicestershire C C (Espo)
10/11/2021,Books and Publications,Electoral Services,"1,539.00",Lexis Nexis Butterworths
16/11/2021,Direct Purchases,Recycling,"100,245.00",Lichfield District Council
03/12/2021,Other Expenses,Brewhouse Community Ticket Sales,"9,463.00",Little Theatre Company
26/11/2021,Grounds Maintenance,Open Spaces,520.00,Livens Limited
29/09/2021,Subscriptions,Millers Lane Depot,"1,400.00",Logistics UK
03/12/2021,Vehicle Maintenance Costs,Recycling,"1,073.00",Logistics UK
01/11/2021,Software Licenses & Contracts,Capital Financing Costs,"1,914.89",Logotech Systems
26/09/2021,Temporary Staff Costs,Financial Management Unit,976.68,Macildowie Associates Ltd
24/09/2021,Advertising,Cultural Services Marketing,"1,640.00",MagicWorx
01/12/2021,Advertising,Cultural Services Marketing,"2,160.00",MagicWorx
28/09/2021,Safer Public Spaces (Covid-19),Re-Opening the High Streets (COVID-19),"1,235.00",MagicWorx
05/10/2021,Arts Worker Fees,Arts Development,636.00,Making Trails
07/12/2021,Wasps Expenditure,Councillors Community Fund,"1,000.00",Management Committee St Chad�s Centre Revenue A/C
23/09/2021,Office Equipment,Burton Town Hall Civic Building,516.43,Marston�s PLC
11/11/2021,Office Equipment,Burton Town Hall Civic Building,918.27,Marston�s PLC
09/12/2021,Office Equipment,Burton Town Hall Civic Building,894.69,Marston�s PLC
09/09/2021,Office Equipment,Burton Town Hall Civic Building,"2,284.45",Marston�s PLC
25/11/2021,Office Equipment,Burton Town Hall Civic Building,873.78,Marston�s PLC
23/09/2021,Catering Supplies,Brewhouse Cafe/Bar,536.77,Marston�s PLC
21/10/2021,Catering Supplies,Brewhouse Cafe/Bar,589.96,Marston�s PLC
19/08/2021,Catering Supplies,Brewhouse Cafe/Bar,786.88,Marston�s PLC
28/10/2021,Catering Supplies,Brewhouse Cafe/Bar,657.56,Marston�s PLC
04/11/2021,Catering Supplies,Brewhouse Cafe/Bar,807.33,Marston�s PLC
02/12/2021,Catering Supplies,Brewhouse Cafe/Bar,560.44,Marston�s PLC
10/11/2021,Training Expenses,Corporate Training,500.00,MBL Seminars Ltd
23/11/2021,Training Expenses,Corporate Training,500.00,MBL Seminars Ltd
04/11/2021,Grounds Maintenance,Open Spaces,810.00,Met Office
01/12/2021,Repairs and Maintenance of Car Park Ticket Machines,Car Parks - General,"1,536.00",Metric Group Limited
01/12/2021,Repairs and Maintenance of Car Park Ticket Machines,Car Parks - General,"1,507.50",Metric Group Limited
11/11/2021,Overs and Shorts,Income Management,"1,369.98",Metropolitan Thames Valley
08/11/2021,Repairs & Maintenance to Buildings,Facilities Management,640.00,Midland Fire & Security Services Ltd
08/11/2021,Repairs & Maintenance to Buildings,Facilities Management,600.00,Midland Fire & Security Services Ltd
08/11/2021,Repairs & Maintenance to Buildings,Facilities Management,700.00,Midland Fire & Security Services Ltd
08/11/2021,Repairs & Maintenance to Buildings,Facilities Management,"1,395.00",Midland Fire & Security Services Ltd
08/11/2021,Repairs & Maintenance to Buildings,Facilities Management,695.00,Midland Fire & Security Services Ltd
08/11/2021,Repairs & Maintenance to Buildings,Facilities Management,550.00,Midland Fire & Security Services Ltd
08/11/2021,Repairs & Maintenance to Buildings,Facilities Management,500.00,Midland Fire & Security Services Ltd
08/12/2021,Taxi Panels,Licensing,"2,636.00",Mogo UK
25/11/2021,"Seeds, Plants and Shrubs",Horticultural Resource Centre,"1,974.00",Moles Seeds (UK) Ltd
31/10/2021,Temporary Staff Costs,Business Rate Collection,"1,557.08",Morgan Hunt UK Ltd
24/10/2021,Temporary Staff Costs,Business Rate Collection,958.50,Morgan Hunt UK Ltd
24/10/2021,Temporary Staff Costs,Business Rate Collection,999.00,Morgan Hunt UK Ltd
05/12/2021,Temporary Staff Costs,Business Rate Collection,999.00,Morgan Hunt UK Ltd
07/11/2021,Temporary Staff Costs,Business Rate Collection,"1,606.98",Morgan Hunt UK Ltd
21/11/2021,Temporary Staff Costs,Business Rate Collection,999.00,Morgan Hunt UK Ltd
12/09/2021,Temporary Staff Costs,Business Rate Collection,960.66,Morgan Hunt UK Ltd
28/11/2021,Temporary Staff Costs,Business Rate Collection,"1,360.10",Morgan Hunt UK Ltd
17/10/2021,Temporary Staff Costs,Business Rate Collection,"1,591.60",Morgan Hunt UK Ltd
12/12/2021,Temporary Staff Costs,Business Rate Collection,"1,647.88",Morgan Hunt UK Ltd
03/10/2021,Temporary Staff Costs,Business Rate Collection,"1,003.59",Morgan Hunt UK Ltd
21/11/2021,Temporary Staff Costs,Business Rate Collection,999.00,Morgan Hunt UK Ltd
21/11/2021,Temporary Staff Costs,Business Rate Collection,"1,647.88",Morgan Hunt UK Ltd
12/09/2021,Temporary Staff Costs,Business Rate Collection,"1,606.98",Morgan Hunt UK Ltd
17/10/2021,Temporary Staff Costs,Business Rate Collection,999.00,Morgan Hunt UK Ltd
28/11/2021,Temporary Staff Costs,Business Rate Collection,999.00,Morgan Hunt UK Ltd
14/11/2021,Temporary Staff Costs,Business Rate Collection,"1,619.74",Morgan Hunt UK Ltd
05/12/2021,Temporary Staff Costs,Business Rate Collection,"1,400.62",Morgan Hunt UK Ltd
03/10/2021,Temporary Staff Costs,Business Rate Collection,"1,557.08",Morgan Hunt UK Ltd
12/12/2021,Temporary Staff Costs,Business Rate Collection,999.00,Morgan Hunt UK Ltd
19/09/2021,Temporary Staff Costs,Business Rate Collection,"1,547.70",Morgan Hunt UK Ltd
24/10/2021,Temporary Staff Costs,Business Rate Collection,"1,475.66",Morgan Hunt UK Ltd
26/09/2021,Temporary Staff Costs,Business Rate Collection,"1,575.84",Morgan Hunt UK Ltd
10/10/2021,Temporary Staff Costs,Business Rate Collection,963.09,Morgan Hunt UK Ltd
31/10/2021,Temporary Staff Costs,Business Rate Collection,999.00,Morgan Hunt UK Ltd
10/10/2021,Temporary Staff Costs,Business Rate Collection,"1,272.68",Morgan Hunt UK Ltd
07/11/2021,Temporary Staff Costs,Business Rate Collection,585.09,Morgan Hunt UK Ltd
31/10/2021,Temporary Staff Costs,Business Rate Collection,"1,023.84",Morgan Hunt UK Ltd
14/11/2021,Temporary Staff Costs,Business Rate Collection,803.25,Morgan Hunt UK Ltd
21/11/2021,Temporary Staff Costs,Business Rate Collection,938.25,Morgan Hunt UK Ltd
07/11/2021,Temporary Staff Costs,Business Rate Collection,999.00,Morgan Hunt UK Ltd
19/09/2021,Temporary Staff Costs,Business Rate Collection,953.91,Morgan Hunt UK Ltd
03/10/2021,Temporary Staff Costs,Council Tax Collection,999.00,Morgan Hunt UK Ltd
19/09/2021,Temporary Staff Costs,Council Tax Collection,999.00,Morgan Hunt UK Ltd
10/10/2021,Temporary Staff Costs,Council Tax Collection,810.00,Morgan Hunt UK Ltd
12/09/2021,Temporary Staff Costs,Council Tax Collection,999.00,Morgan Hunt UK Ltd
26/09/2021,Temporary Staff Costs,Council Tax Collection,999.00,Morgan Hunt UK Ltd
17/10/2021,Temporary Staff Costs,Council Tax Collection,999.00,Morgan Hunt UK Ltd
07/12/2021,Section 50 Burials,Environmental Health,"1,020.00",Murray�s Independent Funeral Directors
28/09/2021,Section 50 Burials,Environmental Health,"1,020.00",Murray�s Independent Funeral Directors
13/12/2021,Training Expenses,Corporate Training,860.00,Myerscough College
28/09/2021,Direct Purchases,Street Cleaning,"2,702.00",N A Brown Ltd
19/11/2021,Direct Purchases,Street Cleaning,583.84,N A Brown Ltd
24/09/2021,Systems Development,Development Control,"18,900.00",NEC Software Solutions UK Ltd
08/12/2021,Temporary Staff Costs,Housing Benefits Admin,"1,680.00",NEC Software Solutions UK Ltd
30/09/2021,Temporary Staff Costs,Housing Benefits Admin,"1,840.00",NEC Software Solutions UK Ltd
07/12/2021,Temporary Staff Costs,Housing Benefits Admin,"2,240.00",NEC Software Solutions UK Ltd
08/12/2021,General Grants,Enterprise,"2,593.60",No 42 Interiors
25/11/2021,Local Restrictions Support Grants � Discretionary (COVID-19),Local Restrictions Support Grants (COVID-19),"10,000.00",No.42 Interiors Limited
04/11/2021,Legal Costs,Development Control,"2,375.00",No5 Chambers Ltd
19/11/2021,Legal Costs,Development Control,"1,000.00",No5 Chambers Ltd
30/09/2021,Direct Purchases,Millers Lane Depot,760.01,Nobisco Limited
23/11/2021,Direct Purchases,Millers Lane Depot,"1,287.28",Nobisco Limited
29/10/2021,ICT Departmental Purchases,ICT,765.94,Nominet UK
10/11/2021,Acquisition of Equipment,ICT,"9,450.00",Nowcomm Ltd
12/10/2021,Hardware Contracts,ICT,"4,947.80",Nowcomm Ltd
23/09/2021,General Grants,Enterprise,"10,000.00",Oakley CNC Machining
08/12/2021,Consultants,Housing Benefits Admin,"2,778.00",Oxford City Council
29/11/2021,Plaques & Benches,Cemeteries,855.00,Paramount Signs Ltd
01/10/2021,Printing and Stationery,Cemeteries,"1,895.00",Parker & Son (Printers) Ltd
31/10/2021,Repairs and Maintenance of Car Park Ticket Machines,Car Parks - General,848.46,PayByPhone Limited
30/09/2021,Repairs and Maintenance of Car Park Ticket Machines,Car Parks - General,771.67,PayByPhone Limited
28/09/2021,Consultants,Legal Services,"3,827.00",Penningtons Manches Cooper LLP
01/12/2021,Acquisition of Vehicles,Millers Lane Depot,"24,395.08",Pentagon Motor Group
01/12/2021,Acquisition of Vehicles,Millers Lane Depot,"24,395.08",Pentagon Motor Group
08/11/2021,Flood Compensation Payments,Flood Compensation Payments,"4,793.00",Peta Mandleberg
17/09/2021,Departmental Postages,Council Tax Collection,645.63,PHD Mail Ltd
15/10/2021,Departmental Postages,Council Tax Collection,602.75,PHD Mail Ltd
29/10/2021,Departmental Postages,Council Tax Collection,550.86,PHD Mail Ltd
10/09/2021,Departmental Postages,Council Tax Collection,550.91,PHD Mail Ltd
12/11/2021,Departmental Postages,Council Tax Collection,614.55,PHD Mail Ltd
23/11/2021,Maintenance Contracts,Public Conveniences,"2,781.22",PHS Group PLC
24/10/2021,Waste & Litter Disposal,Burton Retail Market,572.79,PHS Group PLC
24/10/2021,Maintenance Contracts,Facilities Management,552.94,PHS Group PLC
22/11/2021,Franking Machine Postages,Central Reprographics,"5,000.00",Pitney Bowes Finance Limited
10/11/2021,Fees and Charges,Charity Ball (October),"2,274.90",Plyvine Catering Ltd
17/09/2021,Recruitment Costs,Development Control,"1,560.00",Point Thirteen Media Ltd
13/12/2021,Training Expenses,Corporate Training,500.00,Police Crime Prevention Initiatives Ltd
09/06/2021,DFG Contractor Payments,Housing Standards,"1,382.46",Premiere Healthcare Ltd
12/11/2021,DFG Contractor Payments,Housing Standards,"1,851.00",Premiere Healthcare Ltd
05/12/2021,Rents,Millers Lane Depot,"6,562.50",Preston Securities Limited
15/10/2021,General Grants,Enterprise,"4,919.00","Privilege Caf�, Bar and Lounge"
09/12/2021,Software Licenses & Contracts,ICT,"1,260.00",ProcessFlows UK Ltd
30/09/2021,Consultants,Cemeteries,"2,750.00",Professional Sportsturf Design (North West) Ltd
29/10/2021,Analysts Fees,Environmental Health,524.34,Public Analyst Scientific Services Limited
14/10/2021,Analysts Fees,Environmental Health,953.68,Public Analyst Scientific Services Limited
30/09/2021,Analysts Fees,Environmental Health,"1,768.68",Public Analyst Scientific Services Limited
16/11/2021,Christmas Decorations,Grants for Tourism,"3,600.00",Pyrotex Fireworx Ltd
17/10/2021,Advertising,Development Control,588.41,Reach Publishing Services Ltd
11/07/2021,Advertising,Development Control,530.84,Reach Publishing Services Ltd
12/12/2021,Advertising,Development Control,600.07,Reach Publishing Services Ltd
05/12/2021,Advertising,Development Control,761.64,Reach Publishing Services Ltd
14/11/2021,Advertising,Development Control,530.84,Reach Publishing Services Ltd
19/09/2021,Advertising,Development Control,830.87,Reach Publishing Services Ltd
14/11/2021,Advertising,Licensing,"1,569.44",Reach Publishing Services Ltd
03/10/2021,Advertising,Committee Support,553.92,Reach Publishing Services Ltd
01/10/2021,Software Licenses & Contracts,Building Consultancy Chargeable Activities,845.00,Resolution Data Management Ltd
21/11/2021,Consultants,Housing Benefits Admin,"2,000.00",Richard Stanier Ltd
09/10/2021,Departmental Postages,Electoral Services,"6,910.83",Royal Mail Group Ltd
05/12/2021,Consultants,Development Control,650.00,RSK ADAS Ltd
05/10/2021,Estates Surveyors Fees,Asset Management,600.00,Rushton Hickman Partnership
16/09/2021,Estates Surveyors Fees,Asset Management,600.00,Rushton Hickman Partnership
29/11/2021,Estates Surveyors Fees,Asset Management,750.00,Salloway Property Consultants
16/11/2021,General Grants,Enterprise,"9,363.13",Saris/ TRI Coatings Ltd
28/09/2021,Repairs & Maintenance to Buildings,Facilities Management,"1,296.00",SAS Water Ltd
30/11/2021,Repairs & Maintenance to Buildings,Facilities Management,"1,064.00",SAS Water Ltd
19/11/2021,Repairs & Maintenance to Buildings,Facilities Management,630.00,SAS Water Ltd
28/10/2021,Repairs & Maintenance to Buildings,Facilities Management,630.00,SAS Water Ltd
25/11/2021,Repairs & Maintenance to Buildings,Facilities Management,"1,699.50",SAS Water Ltd
27/09/2021,Repairs & Maintenance to Buildings,Facilities Management,630.00,SAS Water Ltd
30/11/2021,Repairs & Maintenance to Buildings,Facilities Management,"1,596.00",SAS Water Ltd
28/09/2021,Repairs & Maintenance to Buildings,Facilities Management,"1,728.00",SAS Water Ltd
07/12/2021,Christmas Decorations,Grants for Tourism,"2,750.00",Scorpion Event Solutions Ltd.
07/12/2021,Christmas Decorations,Grants for Tourism,"1,365.00",Scorpion Event Solutions Ltd.
30/09/2021,Cash Collection Security Services,Car Parks - General,"2,830.44",Security Plus + Limited
31/10/2021,Cash Collection Security Services,Car Parks - General,"2,848.98",Security Plus + Limited
23/11/2021,Consultants,Closed Circuit Cameras,"1,300.00",SGW Safety & Security Limited
15/11/2021,Recruitment Costs,Human Resources,714.00,SHL Group Ltd
06/10/2021,Website Construction & Maintenance,Programmes and Transformation,"1,303.88",Silktide Ltd
17/11/2021,Direct Purchases,DSO Stores Account,"1,060.00",SMI INT Group Ltd
15/09/2021,Advertising,Cultural Services Marketing,"1,402.50",SocialSignin Ltd
01/11/2021,Vehicle Maintenance Costs,Refuse Collection,"33,738.00",Specialist Fleet Services Ltd
19/10/2021,Property Insurance,Leisure Management,809.69,Sports & Leisure Management Ltd
07/09/2021,Third Party Payments,Leisure Management,"23,280.00",Sports & Leisure Management Ltd
27/05/2021,Third Party Payments,Leisure Management,"46,560.00",Sports & Leisure Management Ltd
02/08/2021,Third Party Payments,Leisure Management,"23,280.00",Sports & Leisure Management Ltd
04/11/2021,Third Party Payments,Leisure Management,"23,758.00",Sports & Leisure Management Ltd
18/10/2021,Third Party Payments,Leisure Management,"23,758.00",Sports & Leisure Management Ltd
26/07/2021,Third Party Payments,Leisure Management,"23,280.00",Sports & Leisure Management Ltd
09/06/2021,Third Party Payments,Leisure Management,"23,280.00",Sports & Leisure Management Ltd
21/09/2021,Third Party Payments,Leisure Management,"2,868.00",Sports & Leisure Management Ltd
04/10/2021,Consultants,Development Control,770.00,Staffordshire County Council
01/10/2021,Search and Investigation Fees,Land Charges,"1,561.50",Staffordshire County Council
05/11/2021,Search and Investigation Fees,Land Charges,"4,918.25",Staffordshire County Council
04/10/2021,Contributions to Other Bodies,Business Rate Collection,"250,000.00",Staffordshire County Council
19/10/2021,Consultants,Recycling,"1,447.00",Staffordshire County Council
21/09/2021,Consultants,Refuse Collection,"2,210.42",Staffordshire County Council
12/11/2021,Third Party Payments,Trade Waste Recycling,"9,857.29",Staffordshire County Council
04/11/2021,Temporary Staff Costs,Legal Services,783.75,Staffordshire County Council
30/11/2021,Consultants,Legal Services,735.00,Staffordshire County Council
25/11/2021,Local Restrictions Support Grants � Discretionary (COVID-19),Local Restrictions Support Grants (COVID-19),"5,000.00",Stage Fever Productions Ltd
26/09/2021,Safer Public Spaces (Covid-19),Re-Opening the High Streets (COVID-19),"1,388.70",StrEATfood Social
12/08/2021,Play Equipment,Open Spaces,"6,500.00",Streetscape Products & Services Ltd
15/11/2021,Advertising,Cultural Services Marketing,"2,358.00",Sunflower Media Ltd
03/11/2021,Commuted Sum Expenditure,Leisure Management,"3,150.00",Surfacing Standards Limited
15/09/2021,Commuted Sum Expenditure,Leisure Management,"1,500.00",Surfacing Standards Limited
15/09/2021,Commuted Sum Expenditure,Leisure Management,850.00,Surfacing Standards Limited
27/09/2021,DFG Contractor Payments,Housing Standards,"7,500.00",T K Builders
21/09/2021,Safer Public Spaces (Covid-19),Re-Opening the High Streets (COVID-19),550.00,Tardis Environmental UK Ltd
03/11/2021,Grounds Maintenance,Open Spaces,570.00,TCM Limited
25/11/2021,Vehicle Maintenance Costs,Refuse Collection,910.00,Tennants Distribution Ltd
27/07/2021,DFG Contractor Payments,Housing Standards,"4,465.00",The Excellent Ramp System Ltd
16/08/2021,DFG Contractor Payments,Housing Standards,"2,300.00",The Excellent Ramp System Ltd
16/08/2021,DFG Contractor Payments,Housing Standards,"1,425.00",The Excellent Ramp System Ltd
03/12/2021,Rents,Coopers Square Car Park - Surface,"2,137.91",The Hollins Murray Group Limited
14/09/2021,Safer Public Spaces (Covid-19),Re-Opening the High Streets (COVID-19),800.00,The Human Hedges
20/10/2021,Temporary Staff Costs,Development Control,589.05,The Oyster Partnership Ltd
10/11/2021,Temporary Staff Costs,Development Control,606.55,The Oyster Partnership Ltd
10/11/2021,Temporary Staff Costs,Development Control,624.65,The Oyster Partnership Ltd
24/11/2021,Temporary Staff Costs,Development Control,685.20,The Oyster Partnership Ltd
17/11/2021,Temporary Staff Costs,Development Control,615.30,The Oyster Partnership Ltd
13/12/2021,Professional Fees,Development Control,"1,027.00",The Royal Town Planning Institute
19/10/2021,Other Homeless Prevention,Housing Options,"1,302.12",Theam Security Ltd
16/11/2021,Other Homeless Prevention,Housing Options,"1,647.87",Theam Security Ltd
16/11/2021,Other Homeless Prevention,Housing Options,"1,008.64",Theam Security Ltd
17/09/2021,General Grants,Health & Leisure Grants,"2,500.00",Together Active
03/11/2021,Training Expenses,Corporate Training,"2,245.50",Total Conflict Management Ltd t/a The TCM Group
09/10/2021,Electricity,Cemeteries,687.76,Total Gas & Power
13/11/2021,Electricity,Brewhouse Arts Centre,513.35,Total Gas & Power
11/12/2021,Electricity,Brewhouse Arts Centre,512.28,Total Gas & Power
09/10/2021,Electricity,Burton Retail Market,"1,183.77",Total Gas & Power
13/11/2021,Electricity,Burton Retail Market,"1,707.15",Total Gas & Power
13/11/2021,Electricity,Facilities Management,"2,613.75",Total Gas & Power
09/10/2021,Electricity,Facilities Management,"1,965.90",Total Gas & Power
30/09/2021,Maintenance Agreements,Closed Circuit Cameras,"1,830.00",Total Integrated Solutions Ltd
30/11/2021,Maintenance Agreements,Closed Circuit Cameras,645.00,Total Integrated Solutions Ltd
30/09/2021,Maintenance Agreements,Closed Circuit Cameras,"1,334.58",Total Integrated Solutions Ltd
30/09/2021,Maintenance Agreements,Closed Circuit Cameras,"1,334.58",Total Integrated Solutions Ltd
01/11/2021,Accommodation Costs - B & B/Hotels,Housing Options - Accommodation,540.00,TQ Hotels Ltd
30/11/2021,Accommodation Costs - B & B/Hotels,Housing Options - Accommodation,"1,350.00",TQ Hotels Ltd
01/11/2021,Accommodation Costs - B & B/Hotels,Housing Options - Accommodation,540.00,TQ Hotels Ltd
03/10/2021,Accommodation Costs - B & B/Hotels,Housing Options - Accommodation,"1,350.00",TQ Hotels Ltd
05/12/2021,Accommodation Costs - B & B/Hotels,Housing Options - Accommodation,810.00,TQ Hotels Ltd
30/11/2021,Accommodation Costs - B & B/Hotels,Housing Options - Accommodation,"1,350.00",TQ Hotels Ltd
01/11/2021,Accommodation Costs - B & B/Hotels,Housing Options - Accommodation,900.00,TQ Hotels Ltd
01/11/2021,Accommodation Costs - B & B/Hotels,Housing Options - Accommodation,"1,215.00",TQ Hotels Ltd
03/10/2021,Accommodation Costs - B & B/Hotels,Housing Options - Accommodation,"1,215.00",TQ Hotels Ltd
01/11/2021,Accommodation Costs - B & B/Hotels,Next Steps Accommodation Programme (NSAP),540.00,TQ Hotels Ltd
30/11/2021,Accommodation Costs - B & B/Hotels,Next Steps Accommodation Programme (NSAP),"1,170.00",TQ Hotels Ltd
30/11/2021,Accommodation Costs - B & B/Hotels,Next Steps Accommodation Programme (NSAP),540.00,TQ Hotels Ltd
30/11/2021,Accommodation Costs - B & B/Hotels,Next Steps Accommodation Programme (NSAP),675.00,TQ Hotels Ltd
30/11/2021,Accommodation Costs - B & B/Hotels,Next Steps Accommodation Programme (NSAP),675.00,TQ Hotels Ltd
19/11/2021,Benefits Overpayments Recovered (Capita),Housing Benefits Overpayments,"8,534.93",TQ Hotels Ltd
06/10/2021,General Grants,Housing Options,"12,000.00",Trent & Dove Housing
06/10/2021,Lettings Service,Housing Options,"20,000.00",Trent & Dove Housing
06/10/2021,Rents,Housing Options - Accommodation,"2,575.00",Trent & Dove Housing
06/10/2021,Rents,Housing Options - Accommodation,"1,082.04",Trent & Dove Housing
11/11/2021,Rents,Housing Options - Accommodation,"1,274.00",Trent & Dove Housing
09/12/2021,Rents,Housing Options - Accommodation,"1,226.03",Trent & Dove Housing
15/11/2021,Benefits Overpayments Recovered (Capita),Housing Benefits Overpayments,729.46,Trent & Dove Housing
04/11/2021,Signs,Community and Civil Enforcement,825.94,TSC Signs Ltd
04/10/2021,Grounds Maintenance,Open Spaces,897.27,Tudor (UK) Ltd t/a Tudor Environmental
08/10/2021,Training Expenses,Corporate Training,"4,000.00",University of the West of England (UWE Bristol)
26/11/2021,Consultants,Uttoxeter Masterplan,"2,978.17","URBED (Urbanism, Environment and Design) Ltd"
31/10/2021,Consultants,Uttoxeter Masterplan,"5,075.00","URBED (Urbanism, Environment and Design) Ltd"
08/10/2021,Consultants,Uttoxeter Masterplan,"10,150.00","URBED (Urbanism, Environment and Design) Ltd"
26/11/2021,Consultants,Uttoxeter Masterplan,"5,075.00","URBED (Urbanism, Environment and Design) Ltd"
15/10/2021,Grounds Maintenance,Open Spaces,"3,500.00",Uttoxeter Lions Welfare Account
12/10/2021,Christmas Decorations,Grants for Tourism,"5,000.00",Uttoxeter Town Council
27/10/2021,Temporary Staff Costs,Legal Services,"1,920.00",Venn Group Limited
24/11/2021,Temporary Staff Costs,Legal Services,"1,920.00",Venn Group Limited
01/12/2021,Temporary Staff Costs,Legal Services,"1,920.00",Venn Group Limited
17/11/2021,Temporary Staff Costs,Legal Services,"1,920.00",Venn Group Limited
13/10/2021,Temporary Staff Costs,Legal Services,"1,920.00",Venn Group Limited
13/10/2021,Temporary Staff Costs,Legal Services,"1,440.00",Venn Group Limited
10/11/2021,Temporary Staff Costs,Legal Services,"1,920.00",Venn Group Limited
03/11/2021,Temporary Staff Costs,Legal Services,"1,920.00",Venn Group Limited
17/11/2021,Temporary Staff Costs,Legal Services (Interim Solicitor),"2,520.00",Venn Group Limited
10/11/2021,Temporary Staff Costs,Legal Services (Interim Solicitor),"2,520.00",Venn Group Limited
29/09/2021,Temporary Staff Costs,Legal Services (Interim Solicitor),"2,520.00",Venn Group Limited
13/10/2021,Temporary Staff Costs,Legal Services (Interim Solicitor),"2,520.00",Venn Group Limited
24/11/2021,Temporary Staff Costs,Legal Services (Interim Solicitor),"2,520.00",Venn Group Limited
29/09/2021,Temporary Staff Costs,Legal Services (Interim Solicitor),"2,520.00",Venn Group Limited
27/11/2021,Temporary Staff Costs,Legal Services (Interim Solicitor),"2,520.00",Venn Group Limited
06/10/2021,Temporary Staff Costs,Legal Services (Interim Solicitor),"2,520.00",Venn Group Limited
20/10/2021,Temporary Staff Costs,Legal Services (Interim Solicitor),"2,520.00",Venn Group Limited
01/12/2021,Temporary Staff Costs,Legal Services (Interim Solicitor),"2,520.00",Venn Group Limited
08/12/2021,Temporary Staff Costs,Legal Services (Interim Solicitor),"2,520.00",Venn Group Limited
03/11/2021,Temporary Staff Costs,Legal Services (Interim Solicitor),"2,520.00",Venn Group Limited
10/11/2021,Repairs & Maintenance to Buildings,Facilities Management,"1,640.00",V-Heat Ltd
30/11/2021,Third Party Payments,Recycling,607.98,Vital Earth GB Ltd
31/10/2021,Third Party Payments,Recycling,745.75,Vital Earth GB Ltd
30/09/2021,Third Party Payments,Recycling,"2,537.54",Vital Earth GB Ltd
26/10/2021,Temporary Staff Costs,Development Control,"1,739.00",Vivid Resourcing
20/10/2021,Temporary Staff Costs,Development Control,"1,739.00",Vivid Resourcing
06/10/2021,Temporary Staff Costs,Development Control,"1,739.00",Vivid Resourcing
08/12/2021,Temporary Staff Costs,Development Control,598.00,Vivid Resourcing
22/09/2021,Temporary Staff Costs,Development Control,846.00,Vivid Resourcing
01/12/2021,Temporary Staff Costs,Development Control,"1,645.00",Vivid Resourcing
17/11/2021,Temporary Staff Costs,Development Control,585.00,Vivid Resourcing
24/11/2021,Temporary Staff Costs,Development Control,"1,645.00",Vivid Resourcing
15/12/2021,Temporary Staff Costs,Development Control,546.00,Vivid Resourcing
17/11/2021,Temporary Staff Costs,Development Control,"1,739.00",Vivid Resourcing
08/12/2021,Temporary Staff Costs,Development Control,"1,645.00",Vivid Resourcing
29/09/2021,Temporary Staff Costs,Development Control,"1,739.00",Vivid Resourcing
05/11/2021,Temporary Staff Costs,Development Control,"1,739.00",Vivid Resourcing
15/12/2021,Temporary Staff Costs,Development Control,"1,645.00",Vivid Resourcing
24/11/2021,Temporary Staff Costs,Development Control,579.85,Vivid Resourcing
10/11/2021,Temporary Staff Costs,Development Control,637.00,Vivid Resourcing
13/10/2021,Temporary Staff Costs,Development Control,"1,504.00",Vivid Resourcing
10/11/2021,Temporary Staff Costs,Development Control,"1,739.00",Vivid Resourcing
16/10/2021,Mobile Telephones,ICT,645.83,Vodafone Limited
15/09/2021,Mobile Telephones,ICT,650.63,Vodafone Limited
15/10/2021,Telephones,Switchboard and Reception,"1,377.19",Vodafone t/a Cable & Wireless UK
13/09/2021,Telephones,Switchboard and Reception,"1,270.52",Vodafone t/a Cable & Wireless UK
13/11/2021,Telephones,Switchboard and Reception,"1,231.50",Vodafone t/a Cable & Wireless UK
11/12/2021,Telephones,Switchboard and Reception,"1,259.82",Vodafone t/a Cable & Wireless UK
01/10/2021,IT Links to Remote Sites,ICT,933.40,Vodafone t/a Cable & Wireless UK
14/09/2021,Water Services,Customer Services Centres,610.15,Water Plus Ltd
07/10/2021,Water Services,Cemeteries,"1,235.58",Water Plus Ltd
14/10/2021,Water Services,Facilities Management,685.21,Water Plus Ltd
14/11/2021,Water Services,Facilities Management,852.37,Water Plus Ltd
20/09/2021,Direct Purchases,DSO Stores Account,"23,200.51",Watson Petroleum Ltd
22/09/2021,Direct Purchases,DSO Stores Account,"8,467.43",Watson Petroleum Ltd
21/10/2021,Consultants,Legal Services,"3,348.00",Weightmans LLP
11/11/2021,Christmas Decorations,Grants for Tourism,"1,645.00",Welford Christmas Tree Farm
15/11/2021,DFG Contractor Payments,Housing Standards,"14,513.00",Wessex Lift Co Ltd
18/11/2021,Hire of Equipment,Brewhouse Arts Centre,"1,814.00",Willowbrook Technical Services Ltd
30/11/2021,Acquisition of Vehicles,Millers Lane Depot,"1,875.00",Willshee�s Waste & Recycling Ltd
30/11/2021,Third Party Payments,Recycling,"7,326.54",Willshee�s Waste & Recycling Ltd
31/10/2021,Third Party Payments,Recycling,"7,279.65",Willshee�s Waste & Recycling Ltd
30/09/2021,Third Party Payments,Recycling,"7,743.96",Willshee�s Waste & Recycling Ltd
20/11/2021,Vehicle Hire,Refuse Collection,581.00,Willshee�s Waste & Recycling Ltd
29/10/2021,Litter Bins,Street Cleaning,"1,499.70",Wybone Ltd
30/11/2021,Grounds Maintenance,Open Spaces,"4,866.55",Wybone Ltd
22/11/2021,Grounds Maintenance,Open Spaces,"2,552.70",Wybone Ltd
